ServiceArea,Service,ResponsibleUnit,ExpensesType,Narrative,DatePaid,Invoice,TransactionReference,NetAmount,CapitalRevenue,SupplierID,SupplierName,Postcode,UnrecoveredVAT
Director Of Environment,Depot Management & Admin,Depot Management & Admin,R&M Bldgs - General,PEST CONTROL - DEPOT,18/02/2022,REDACTED INVOICE NUMBER,155480,70.00,Revenue,29,A1 Environmental Pest Control,CM13 1LH,0.00
Director Of Environment,Open Spaces,Recreation Areas,Purchases - Materials,PEST CONTROL - KGPF,18/02/2022,REDACTED INVOICE NUMBER,155479,440,Revenue,29,A1 Environmental Pest Control,CM13 1LH,0.00
Director Of Environment,Depot Management & Admin,Depot Management & Admin,Agency Staff,PROJECT MANAGEMENT SUPPORT,18/02/2022,REDACTED INVOICE NUMBER,155525,293.96,Revenue,75,Adecco Uk Ltd,WD6 1WD,0.00
Director Of Environment,Depot Management & Admin,Depot Management & Admin,Agency Staff,PROJECT MANAGEMENT SUPPORT,18/02/2022,REDACTED INVOICE NUMBER,155773,293.96,Revenue,75,Adecco Uk Ltd,WD6 1WD,0.00
Director Of Environment,Parking,Parking Services,Agency Staff,PROJECT MANAGEMENT SUPPORT,18/02/2022,REDACTED INVOICE NUMBER,155525,293.97,Revenue,75,Adecco Uk Ltd,WD6 1WD,0.00
Director Of Environment,Parking,Parking Services,Agency Staff,PROJECT MANAGEMENT SUPPORT,18/02/2022,REDACTED INVOICE NUMBER,155773,293.97,Revenue,75,Adecco Uk Ltd,WD6 1WD,0.00
Director Of Environment,Env Health & Licensing Admin,Env Health & Licensing Admin,Vehicle Hire,VAN HIRE,01/02/2022,REDACTED INVOICE NUMBER,154042,75,Revenue,1257,Ahl Fleet,RM14 3NX,0.00
Director Of Environment,Env Health & Licensing Admin,Env Health & Licensing Admin,Vehicle Hire,VAN HIRE,01/02/2022,REDACTED INVOICE NUMBER,154043,85,Revenue,1257,Ahl Fleet,RM14 3NX,0.00
Director Of Environment,Env Health & Licensing Admin,Env Health & Licensing Admin,Vehicle Hire,VAN HIRE,01/02/2022,REDACTED INVOICE NUMBER,154469,75,Revenue,1257,Ahl Fleet,RM14 3NX,0.00
Director Of Environment,Env Health & Licensing Admin,Env Health & Licensing Admin,Vehicle Hire,VAN HIRE,01/02/2022,REDACTED INVOICE NUMBER,154482,85,Revenue,1257,Ahl Fleet,RM14 3NX,0.00
Director Of Environment,Grounds Maintenance,Grounds Maintenance,Vehicle Hire,VAN HIRE,01/02/2022,REDACTED INVOICE NUMBER,154480,75,Revenue,1257,Ahl Fleet,RM14 3NX,0.00
Hra Expenditure,Special Services,Caretaking,Vehicle Hire,VAN HIRE,01/02/2022,REDACTED INVOICE NUMBER,154479,120,Revenue,1257,Ahl Fleet,RM14 3NX,0.00
Hra Expenditure,Special Services,Caretaking,Vehicle Hire,VAN HIRE,01/02/2022,REDACTED INVOICE NUMBER,154470,85,Revenue,1257,Ahl Fleet,RM14 3NX,0.00
Director Of Environment,Env Health & Licensing Admin,Env Health & Licensing Admin,Vehicle Hire,VAN HIRE,08/02/2022,REDACTED INVOICE NUMBER,154884,75,Revenue,1257,Ahl Fleet,RM14 3NX,0.00
Director Of Environment,Env Health & Licensing Admin,Env Health & Licensing Admin,Vehicle Hire,VAN HIRE,08/02/2022,REDACTED INVOICE NUMBER,154885,85,Revenue,1257,Ahl Fleet,RM14 3NX,0.00
Director Of Environment,Env Health & Licensing Admin,Env Health & Licensing Admin,Vehicle Hire,VAN HIRE,15/02/2022,REDACTED INVOICE NUMBER,155108,75,Revenue,1257,Ahl Fleet,RM14 3NX,0.00
Director Of Environment,Env Health & Licensing Admin,Env Health & Licensing Admin,Vehicle Hire,VAN HIRE,15/02/2022,REDACTED INVOICE NUMBER,155107,85,Revenue,1257,Ahl Fleet,RM14 3NX,0.00
Director Of Environment,Env Health & Licensing Admin,Env Health & Licensing Admin,Vehicle Hire,VAN HIRE,22/02/2022,REDACTED INVOICE NUMBER,155375,75,Revenue,1257,Ahl Fleet,RM14 3NX,0.00
Director Of Environment,Env Health & Licensing Admin,Env Health & Licensing Admin,Vehicle Hire,VAN HIRE,22/02/2022,REDACTED INVOICE NUMBER,155376,85,Revenue,1257,Ahl Fleet,RM14 3NX,0.00
Director Of Environment,Env Health & Licensing Admin,Env Health & Licensing Admin,Vehicle Hire,VAN HIRE,22/02/2022,REDACTED INVOICE NUMBER,155532,85,Revenue,1257,Ahl Fleet,RM14 3NX,0.00
Director Of Environment,Parking,Parking Services,Bank Charges,TRANSACTION CHARGES - DECEMBER '21,04/02/2022,REDACTED INVOICE NUMBER,155469,414.12,Revenue,28063,Aib Merchant Services (Pg Payments),.,0.00
Director Of Environment,Parking,Parking Services,Bank Charges,TRANSACTION CHARGES - JANUARY '22,04/02/2022,REDACTED INVOICE NUMBER,155468,360.66,Revenue,28063,Aib Merchant Services (Pg Payments),.,0.00
Capex Director Of Environment,Corporate Services,King George'S Redevelopment,Enhancements,BIKE SHELTER - KGPF,04/02/2022,REDACTED INVOICE NUMBER,154965,13355,Capital,27165,Alliance Leisure Services Limited,BS32 4AQ,0.00
Hra Expenditure,Supervision And Management,Rent Collection & Recovery,Bank Charges,PAYMENT PROCESSING,15/02/2022,REDACTED INVOICE NUMBER,155441,123.17,Revenue,132,Allpay.Net Limited,HR1 3SE,0.00
Hra Expenditure,Supervision And Management,Rent Collection & Recovery,Bank Charges,PAYMENT PROCESSING,15/02/2022,REDACTED INVOICE NUMBER,155440,471.8,Revenue,132,Allpay.Net Limited,HR1 3SE,0.00
Director Of Environment,Parking,Parking Services,Enforcement,TRAINING,25/02/2022,REDACTED INVOICE NUMBER,156087,499,Revenue,28176,Alpha Parking Ltd,WC1V 6HZ,0.00
Hra Expenditure,"Rents, Rates & Other Charges","Rents, Rates & Other Charges",Water,WATER SUPPLY,22/02/2022,REDACTED INVOICE NUMBER,155876,66.61,Revenue,28194,Anglian Water - Domestic Properties,PE29 6XU,0.00
Chief Executive,Executive Board,Senior Leadership Team,Project Management Support,PROFESSIONAL SERVICES,04/02/2022,REDACTED INVOICE NUMBER,154890,2000,Revenue,28188,Appletons Surveyors Ltd,TS18 1LS,0.00
Chief Executive,Executive Board,Senior Leadership Team,Project Management Support,PROFESSIONAL SERVICES,04/02/2022,REDACTED INVOICE NUMBER,154891,1500,Revenue,28188,Appletons Surveyors Ltd,TS18 1LS,0.00
Capex Director Of Environment,Other Environmental Services,Disabled Facilities Grant,Grants - General,DISABLED FACILITIES GRANT,11/02/2022,REDACTED INVOICE NUMBER,155661,3088.66,Capital,28833,Aran Insulation Limited,IP28 6NE,0.00
Capex Director Of Environment,Other Environmental Services,Disabled Facilities Grant,Grants - General,DISABLED FACILITIES GRANT,25/02/2022,REDACTED INVOICE NUMBER,156289,2523.57,Capital,28833,Aran Insulation Limited,IP28 6NE,0.00
Capex Director Of Housing,Housing - Affordable Housing,Coram Green,Enhancements,Professional Services,01/02/2022,REDACTED INVOICE NUMBER,154558,350,Capital,27906,Arcus Consulting Llp,M33 7AR,0.00
Capex Director Of C Resources,Asset Management,Asset Management Strategy,Enhancements,Professional Services,18/02/2022,REDACTED INVOICE NUMBER,155212,1500,Capital,27906,Arcus Consulting Llp,M33 7AR,0.00
Capex Director Of Environment,Corporate Services,King George'S Redevelopment,Contracted Services,KING GEORGES PAVILLION DEVELOPMENT,01/02/2022,REDACTED INVOICE NUMBER,154582,2125.5,Capital,28277,Ark Consultancy Ltd,B18 6DS,0.00
Capex Director Of Housing,Housing - Affordable Housing,Garage Site Development,Enhancements,Strategic Housing Development,01/02/2022,REDACTED INVOICE NUMBER,154592,5231.25,Capital,28277,Ark Consultancy Ltd,B18 6DS,0.00
Director Of Planning & Economy,Planning Development Managemt,Planning Development Managemt,Other Professional Fees,Strategic Housing Development,11/02/2022,REDACTED INVOICE NUMBER,155636,3425.5,Revenue,28277,Ark Consultancy Ltd,B18 6DS,0.00
Hra Expenditure,Supervision And Management,Policy And Management,Contracted Services,Housing Strategy Support,11/02/2022,REDACTED INVOICE NUMBER,155637,9100,Revenue,28277,Ark Consultancy Ltd,B18 6DS,0.00
Capex Director Of Environment,Other Environmental Services,Disabled Facilities Grant,Grants - General,DISABLED FACILITIES GRANT,22/02/2022,REDACTED INVOICE NUMBER,155509,"4,500.00",Capital,28621,Ascalon Building Services,SS14 3BB,0.00
Director Corporate Resources,Asset Management,Asset Management,R&M Bldgs - General,MANHOLE REPAIR - DEPOT,18/02/2022,REDACTED INVOICE NUMBER,155072,890.00,Revenue,220,Ashe Green Civil Engineers Ltd,CM3 3PF,0.00
Director Of Environment,Vehicle Fleet Management,Vehicle Fleet Management,Vehicle Replacement Parts,VEHICLE REPAIRS - VARIOUS,01/02/2022,REDACTED INVOICE NUMBER,150242,123.14,Revenue,26506,Asm Truck Diagnostics Ltd,SS14 3EU,0.00
Director Of Environment,Vehicle Fleet Management,Vehicle Fleet Management,Vehicle R&M - External,VEHICLE REPAIRS - VARIOUS,01/02/2022,REDACTED INVOICE NUMBER,150242,340,Revenue,26506,Asm Truck Diagnostics Ltd,SS14 3EU,0.00
Director Of Environment,Vehicle Fleet Management,Vehicle Fleet Management,Vehicle R&M - External,VEHICLE REPAIRS - VARIOUS,04/02/2022,REDACTED INVOICE NUMBER,154312,400,Revenue,26506,Asm Truck Diagnostics Ltd,SS14 3EU,0.00
Director Of Environment,Vehicle Fleet Management,Vehicle Fleet Management,Vehicle R&M - External,VEHICLE REPAIRS,04/02/2022,REDACTED INVOICE NUMBER,154314,340,Revenue,26506,Asm Truck Diagnostics Ltd,SS14 3EU,0.00
Director Of Environment,Vehicle Fleet Management,Vehicle Fleet Management,Vehicle R&M - External,VEHICLE REPAIRS,04/02/2022,REDACTED INVOICE NUMBER,154313,400,Revenue,26506,Asm Truck Diagnostics Ltd,SS14 3EU,0.00
Director Of Environment,Vehicle Fleet Management,Vehicle Fleet Management,Vehicle R&M - External,VEHICLE REPAIRS,04/02/2022,REDACTED INVOICE NUMBER,154383,340.00,Revenue,26506,Asm Truck Diagnostics Ltd,SS14 3EU,0.00
Director Of Environment,Vehicle Fleet Management,Vehicle Fleet Management,Vehicle R&M - External,VEHICLE REPAIRS,04/02/2022,REDACTED INVOICE NUMBER,154384,340,Revenue,26506,Asm Truck Diagnostics Ltd,SS14 3EU,0.00
Director Of Environment,Waste Management,Refuse Waste,Vehicle Hire,VEHICLE REPAIRS,04/02/2022,REDACTED INVOICE NUMBER,154287,350.00,Revenue,26506,Asm Truck Diagnostics Ltd,SS14 3EU,0.00
Director Of Environment,Vehicle Fleet Management,Vehicle Fleet Management,Vehicle Replacement Parts,VEHICLE REPAIRS,08/02/2022,REDACTED INVOICE NUMBER,154437,831.00,Revenue,26506,Asm Truck Diagnostics Ltd,SS14 3EU,0.00
Director Of Environment,Vehicle Fleet Management,Vehicle Fleet Management,Vehicle R&M - External,VEHICLE REPAIRS,08/02/2022,REDACTED INVOICE NUMBER,154437,540.00,Revenue,26506,Asm Truck Diagnostics Ltd,SS14 3EU,0.00
Director Of Environment,Vehicle Fleet Management,Vehicle Fleet Management,Vehicle R&M - External,VEHICLE REPAIRS,08/02/2022,REDACTED INVOICE NUMBER,154436,"1,948.74",Revenue,26506,Asm Truck Diagnostics Ltd,SS14 3EU,0.00
Director Of Environment,Grounds Maintenance,Grounds Maintenance,Vehicle R&M - External,VEHICLE REPAIRS,18/02/2022,REDACTED INVOICE NUMBER,154973,40.00,Revenue,26506,Asm Truck Diagnostics Ltd,SS14 3EU,0.00
Director Of Environment,Grounds Maintenance,Grounds Maintenance,Vehicle R&M - External,VEHICLE REPAIRS,18/02/2022,REDACTED INVOICE NUMBER,154974,20.00,Revenue,26506,Asm Truck Diagnostics Ltd,SS14 3EU,0.00
Director Of Environment,Vehicle Fleet Management,Vehicle Fleet Management,Vehicle R&M - External,VEHICLE REPAIRS,18/02/2022,REDACTED INVOICE NUMBER,154973,300,Revenue,26506,Asm Truck Diagnostics Ltd,SS14 3EU,0.00
Director Of Environment,Vehicle Fleet Management,Vehicle Fleet Management,Vehicle R&M - External,VEHICLE REPAIRS,18/02/2022,REDACTED INVOICE NUMBER,154974,320,Revenue,26506,Asm Truck Diagnostics Ltd,SS14 3EU,0.00
Director Of Environment,Vehicle Fleet Management,Vehicle Fleet Management,Vehicle R&M - External,VEHICLE REPAIRS,18/02/2022,REDACTED INVOICE NUMBER,154969,340,Revenue,26506,Asm Truck Diagnostics Ltd,SS14 3EU,0.00
Director Of Environment,Vehicle Fleet Management,Vehicle Fleet Management,Vehicle R&M - External,VEHICLE REPAIRS,18/02/2022,REDACTED INVOICE NUMBER,154967,340,Revenue,26506,Asm Truck Diagnostics Ltd,SS14 3EU,0.00
Director Of Environment,Vehicle Fleet Management,Vehicle Fleet Management,Vehicle R&M - External,VEHICLE REPAIRS,18/02/2022,REDACTED INVOICE NUMBER,154971,340,Revenue,26506,Asm Truck Diagnostics Ltd,SS14 3EU,0.00
Director Of Environment,Vehicle Fleet Management,Vehicle Fleet Management,Vehicle R&M - External,VEHICLE REPAIRS,18/02/2022,REDACTED INVOICE NUMBER,154972,340,Revenue,26506,Asm Truck Diagnostics Ltd,SS14 3EU,0.00
Director Of Environment,Vehicle Fleet Management,Vehicle Fleet Management,Vehicle R&M - External,VEHICLE REPAIRS,18/02/2022,REDACTED INVOICE NUMBER,154968,340,Revenue,26506,Asm Truck Diagnostics Ltd,SS14 3EU,0.00
Director Of Environment,Vehicle Fleet Management,Vehicle Fleet Management,Vehicle Replacement Parts,VEHICLE REPAIRS,25/02/2022,REDACTED INVOICE NUMBER,155251,340,Revenue,26506,Asm Truck Diagnostics Ltd,SS14 3EU,0.00
Director Of Environment,Vehicle Fleet Management,Vehicle Fleet Management,Vehicle R&M - External,VEHICLE REPAIRS,25/02/2022,REDACTED INVOICE NUMBER,155126,340,Revenue,26506,Asm Truck Diagnostics Ltd,SS14 3EU,0.00
Director Of Environment,Vehicle Fleet Management,Vehicle Fleet Management,Vehicle R&M - External,VEHICLE REPAIRS,25/02/2022,REDACTED INVOICE NUMBER,155249,400,Revenue,26506,Asm Truck Diagnostics Ltd,SS14 3EU,0.00
Director Of Environment,Vehicle Fleet Management,Vehicle Fleet Management,Vehicle R&M - External,VEHICLE REPAIRS,25/02/2022,REDACTED INVOICE NUMBER,155250,340,Revenue,26506,Asm Truck Diagnostics Ltd,SS14 3EU,0.00
Director Of Environment,Vehicle Fleet Management,Vehicle Fleet Management,Vehicle R&M - External,VEHICLE REPAIRS,25/02/2022,REDACTED INVOICE NUMBER,155248,460,Revenue,26506,Asm Truck Diagnostics Ltd,SS14 3EU,0.00
Director Of Environment,Vehicle Fleet Management,Vehicle Fleet Management,Vehicle R&M - External,VEHICLE REPAIRS,25/02/2022,REDACTED INVOICE NUMBER,155125,340,Revenue,26506,Asm Truck Diagnostics Ltd,SS14 3EU,0.00
Director Of Environment,Vehicle Fleet Management,Vehicle Fleet Management,Vehicle R&M - External,VEHICLE REPAIRS,25/02/2022,REDACTED INVOICE NUMBER,154970,400,Revenue,26506,Asm Truck Diagnostics Ltd,SS14 3EU,0.00
Capex Director Of Housing,Housing - Hra,Boiler/ Heating  Replacement,Enhancements,BOILER INSTALLS - DEC '21,08/02/2022,REDACTED INVOICE NUMBER,154240,24601.02,Capital,27759,Axis Europe,E15 4PN,0.00
Capex Director Of Housing,Housing - Hra,Housing Stock Rewiring,Enhancements,EMERGENCY LIGHTING - DEC '21,08/02/2022,REDACTED INVOICE NUMBER,154238,16199.59,Capital,27759,Axis Europe,E15 4PN,0.00
Capex Director Of Housing,Housing - Hra,Housing Stock - Water,Enhancements,WATER HYGIENE PROGRAMME - DEC '21,08/02/2022,REDACTED INVOICE NUMBER,154237,466,Capital,27759,Axis Europe,E15 4PN,0.00
Hra Expenditure,Repairs And Maintenance,Planned Maintenance,R&M Fix & Fit - Electrical,EMERGENCY LIGHTING - DEC '21,08/02/2022,REDACTED INVOICE NUMBER,154238,6924,Revenue,27759,Axis Europe,E15 4PN,0.00
Hra Expenditure,Repairs And Maintenance,Responsive Repairs Management,R&M Fix & Fit - Gas Repairs,COMMERCIAL GAS - DEC '21,08/02/2022,REDACTED INVOICE NUMBER,154241,7773.54,Revenue,27759,Axis Europe,E15 4PN,0.00
Hra Expenditure,Repairs And Maintenance,Responsive Repairs Management,R&M Fix & Fit - Gas Repairs,GAS EXCLUSIONS - DEC '21,08/02/2022,REDACTED INVOICE NUMBER,154242,4535.12,Revenue,27759,Axis Europe,E15 4PN,0.00
Capex Director Of Housing,Housing - Hra,Housing Stock Rewiring,Enhancements,APPLICATION 31 - DEC '21,15/02/2022,REDACTED INVOICE NUMBER,154239,32284.12,Capital,27759,Axis Europe,E15 4PN,0.00
Hra Expenditure,Repairs And Maintenance,Planned Maintenance,R&M Fix & Fit - Electrical,APPLICATION 31 - DEC '21,15/02/2022,REDACTED INVOICE NUMBER,154239,6747.04,Revenue,27759,Axis Europe,E15 4PN,0.00
Hra Expenditure,Repairs And Maintenance,Responsive Repairs Management,R&M Fix & Fit - Electrical,APPLICATION 31 - DEC '21,15/02/2022,REDACTED INVOICE NUMBER,154239,14909.15,Revenue,27759,Axis Europe,E15 4PN,0.00
Hra Expenditure,Repairs And Maintenance,Planned Maintenance,R&M Fix & Fit - Gas Extra Ppp,3*GAS SERVICING - JAN '22,18/02/2022,REDACTED INVOICE NUMBER,155048,24116.42,Revenue,27759,Axis Europe,E15 4PN,0.00
Hra Expenditure,Repairs And Maintenance,Planned Maintenance,R&M Fix & Fit - Gas Repairs,COMMUNAL HEATING - JAN '22,18/02/2022,REDACTED INVOICE NUMBER,155152,3154.15,Revenue,27759,Axis Europe,E15 4PN,0.00
Hra Expenditure,Repairs And Maintenance,Responsive Repairs Management,R&M Bldgs - Ppp,PPG GARAGES - JAN '22,18/02/2022,REDACTED INVOICE NUMBER,155142,1489.5,Revenue,27759,Axis Europe,E15 4PN,0.00
Hra Expenditure,Repairs And Maintenance,Responsive Repairs Management,R&M Bldgs - Ppp,PPP - JAN '22,18/02/2022,REDACTED INVOICE NUMBER,155151,72545.94,Revenue,27759,Axis Europe,E15 4PN,0.00
Capex Director Of Housing,Housing - Hra,Housing Stock -Health & Safety,Enhancements,INTERIM VALUATION - DRAKE HOUSE,22/02/2022,REDACTED INVOICE NUMBER,154053,24145.27,Capital,27759,Axis Europe,E15 4PN,0.00
Hra Expenditure,Repairs And Maintenance,Planned Maintenance,R&M Fix & Fit - Lifts,LIFT SERVICING - JAN '22,25/02/2022,REDACTED INVOICE NUMBER,156297,617.34,Revenue,27759,Axis Europe,E15 4PN,0.00
Hra Expenditure,Repairs And Maintenance,Planned Maintenance,R&M Fix & Fit - Lifts,STAIRLIFT SERVICING - JAN '22,25/02/2022,REDACTED INVOICE NUMBER,156296,600.18,Revenue,27759,Axis Europe,E15 4PN,0.00
Capex Director Of Housing,Housing - Hra,Housing Stock -Health & Safety,Enhancements,FRA WORKS TO BLOCKS,11/02/2022,REDACTED INVOICE NUMBER,153696,7000,Capital,28436,Baily Garner Llp,SE9 5DY,0.00
Capex Director Of Housing,Housing - Affordable Housing,Brookfield Project,Enhancements,BROOKFIELD CLOSE,11/02/2022,REDACTED INVOICE NUMBER,155722,9000,Capital,305,Barton Willmore,RG1 3BE,0.00
Capex Director Of Housing,Housing - Affordable Housing,Brookfield Project,Enhancements,BROOKFIELD CLOSE,25/02/2022,REDACTED INVOICE NUMBER,155721,7200,Capital,305,Barton Willmore,RG1 3BE,0.00
Director Of Planning & Economy,Economic Development Total,Economic Development,Software Support & Maintenance,REIMBURSEMENT OF COSTS,11/02/2022,REDACTED INVOICE NUMBER,154883,931.15,Revenue,306,Basildon Borough Council,SS14 0DF,0.00
Director Of Planning & Economy,Economic Development Total,Economic Development,Software Support & Maintenance,REIMBURSEMENT OF COSTS,11/02/2022,REDACTED INVOICE NUMBER,154882,900,Revenue,306,Basildon Borough Council,SS14 0DF,0.00
Director Of Environment,"Communities, Health & Leisure",Sports & Social Venues,Purchases - General Equipment,VEHICLE PARTS,25/02/2022,REDACTED INVOICE NUMBER,156367,23.98,Revenue,23820,Bates Office Services Limited,ME2 2LS,0.00
Director Housing & Enforcement,Housing Advice & Enabling,Housing Advice,Medical Reports,MEDICAL REPORT,04/02/2022,REDACTED INVOICE NUMBER,155115,50,Revenue,321,Beechwood Surgery,CM14 5WF,0.00
Director Of Environment,Parking,Parking Services,Bank Charges,PAY BY PHONE PARKING. OCT '21 - DEC '21,04/02/2022,REDACTED INVOICE NUMBER,154540,15011.27,Revenue,22417,Bemrose Mobile Ltd,AL1 3TF,0.00
Director Of Law & Governance,Legal Services & Data Protect,Legal Services & Data Protect,Court Fees,COURT FEES FOCUS SECURITY,04/02/2022,REDACTED INVOICE NUMBER,155495,673.27,Revenue,359,Birketts Llp,CM2 0AP,0.00
Director Of Law & Governance,Legal Services & Data Protect,Legal Services & Data Protect,Legal Fees,GENERAL ADVICE FILE,11/02/2022,REDACTED INVOICE NUMBER,154976,1320,Revenue,359,Birketts Llp,CM2 0AP,0.00
Director Of Law & Governance,Legal Services & Data Protect,Legal Services & Data Protect,Legal Fees,SHOP HAREWOOD RD,11/02/2022,REDACTED INVOICE NUMBER,154850,305,Revenue,359,Birketts Llp,CM2 0AP,0.00
Director Of Law & Governance,Legal Services & Data Protect,Legal Services & Data Protect,Legal Fees,ACADEMY PLACE / BAYTREE CENTRE,15/02/2022,REDACTED INVOICE NUMBER,155051,795,Revenue,359,Birketts Llp,CM2 0AP,0.00
Director Of Law & Governance,Legal Services & Data Protect,Legal Services & Data Protect,Legal Fees,BOUNDARY ADVICE,18/02/2022,REDACTED INVOICE NUMBER,154052,768.5,Revenue,359,Birketts Llp,CM2 0AP,0.00
Director Of Law & Governance,Legal Services & Data Protect,Legal Services & Data Protect,Legal Fees,GOLF BOOKING SERVICES,18/02/2022,REDACTED INVOICE NUMBER,154561,2470,Revenue,359,Birketts Llp,CM2 0AP,0.00
Director Of Law & Governance,Legal Services & Data Protect,Legal Services & Data Protect,Planning Fees,GENERAL PLANNING FILE,18/02/2022,REDACTED INVOICE NUMBER,155053,3175,Revenue,359,Birketts Llp,CM2 0AP,0.00
Director Of Law & Governance,Legal Services & Data Protect,Legal Services & Data Protect,Legal Fees,BOUNDARY ADVICE,22/02/2022,REDACTED INVOICE NUMBER,155541,130,Revenue,359,Birketts Llp,CM2 0AP,0.00
Director Of Law & Governance,Legal Services & Data Protect,Legal Services & Data Protect,Legal Fees,ADVICE,22/02/2022,REDACTED INVOICE NUMBER,155445,1000,Revenue,359,Birketts Llp,CM2 0AP,0.00
Director Of Law & Governance,Legal Services & Data Protect,Legal Services & Data Protect,Legal Fees,NON-COOPERATION & PROCEDURE REVIEW,22/02/2022,REDACTED INVOICE NUMBER,155543,241.5,Revenue,359,Birketts Llp,CM2 0AP,0.00
Director Of Law & Governance,Legal Services & Data Protect,Legal Services & Data Protect,Planning Fees,"HOLBROOK STABLES, THOBY LANE",22/02/2022,REDACTED INVOICE NUMBER,155140,589,Revenue,359,Birketts Llp,CM2 0AP,0.00
Director Of Law & Governance,Legal Services & Data Protect,Legal Services & Data Protect,Planning Fees,LAND AT RUSTIC DENE,22/02/2022,REDACTED INVOICE NUMBER,155198,150,Revenue,359,Birketts Llp,CM2 0AP,0.00
Director Of Law & Governance,Legal Services & Data Protect,Legal Services & Data Protect,Search Fees,BOUNDARY ADVICE,22/02/2022,REDACTED INVOICE NUMBER,155541,18,Revenue,359,Birketts Llp,CM2 0AP,0.00
Director Of Law & Governance,Legal Services & Data Protect,Legal Services & Data Protect,Legal Fees,POSSESION,25/02/2022,REDACTED INVOICE NUMBER,155505,275,Revenue,359,Birketts Llp,CM2 0AP,0.00
Director Of Law & Governance,Legal Services & Data Protect,Legal Services & Data Protect,Legal Fees,DISREPAIR,25/02/2022,REDACTED INVOICE NUMBER,155501,216,Revenue,359,Birketts Llp,CM2 0AP,0.00
Director Of Law & Governance,Legal Services & Data Protect,Legal Services & Data Protect,Legal Fees,POSSESION,25/02/2022,REDACTED INVOICE NUMBER,155506,212.5,Revenue,359,Birketts Llp,CM2 0AP,0.00
Director Of Law & Governance,Legal Services & Data Protect,Legal Services & Data Protect,Legal Fees,POSSESION,25/02/2022,REDACTED INVOICE NUMBER,155502,130.5,Revenue,359,Birketts Llp,CM2 0AP,0.00
Director Of Law & Governance,Legal Services & Data Protect,Legal Services & Data Protect,Legal Fees,POSSESION,25/02/2022,REDACTED INVOICE NUMBER,155638,625,Revenue,359,Birketts Llp,CM2 0AP,0.00
Director Of Law & Governance,Legal Services & Data Protect,Legal Services & Data Protect,Legal Fees,SUCCSSION,25/02/2022,REDACTED INVOICE NUMBER,155503,125,Revenue,359,Birketts Llp,CM2 0AP,0.00
Director Of Law & Governance,Legal Services & Data Protect,Legal Services & Data Protect,Legal Fees,SQUATTERS,25/02/2022,REDACTED INVOICE NUMBER,155504,502.5,Revenue,359,Birketts Llp,CM2 0AP,0.00
Director Of Law & Governance,Legal Services & Data Protect,Legal Services & Data Protect,Legal Fees,POSSESION,25/02/2022,REDACTED INVOICE NUMBER,155500,1146.5,Revenue,359,Birketts Llp,CM2 0AP,0.00
Director Of Law & Governance,Legal Services & Data Protect,Legal Services & Data Protect,Legal Fees,GENERAL EMPLOYMENT ADVICE,25/02/2022,REDACTED INVOICE NUMBER,150356,280.00,Revenue,359,Birketts Llp,CM2 0AP,0.00
Director Of Law & Governance,Legal Services & Data Protect,Legal Services & Data Protect,Legal Fees,HAMPDEN CRESCENT GARAGES LEASE,25/02/2022,REDACTED INVOICE NUMBER,155321,"1,955.00",Revenue,359,Birketts Llp,CM2 0AP,0.00
Director Of Law & Governance,Legal Services & Data Protect,Legal Services & Data Protect,Search Fees,SQUATTERS,25/02/2022,REDACTED INVOICE NUMBER,155504,3.00,Revenue,359,Birketts Llp,CM2 0AP,0.00
Director Of Law & Governance,Legal Services & Data Protect,Legal Services & Data Protect,Search Fees,HAMPDEN CRESCENT GARAGES LEASE,25/02/2022,REDACTED INVOICE NUMBER,155321,18.00,Revenue,359,Birketts Llp,CM2 0AP,0.00
Director Of Law & Governance,Legal Services & Data Protect,Legal Services & Data Protect,Legal Fees,CLAIM,11/02/2022,REDACTED INVOICE NUMBER,155664,"1,500.00",Revenue,187779P,Birketts Llp Client Account (Pg),.,0.00
Capex Director Of Environment,Corporate Services,King George'S Redevelopment,Enhancements,BLINDS,22/02/2022,REDACTED INVOICE NUMBER,156262,"2,473.20",Capital,202818P,Brentwood Blinds Ltd,RM4 1HB,0.00
Director Of Environment,Parking,Parking Services,Telephones - General,RADIO HIRE - MSCP - JAN '22,25/02/2022,REDACTED INVOICE NUMBER,155259,104.08,Revenue,415,Brentwood Communications Ltd,CM3 8EW,0.00
Director Of Environment,"Communities, Health & Leisure",Grants To Organisations,Grants - Bct,COMMUNITY TRANSPORT PROVISION (3),11/02/2022,REDACTED INVOICE NUMBER,155419,"6,634.00",Revenue,418,Brentwood Community Transport,CM14 4AJ,0.00
Capex Director Of Housing,Housing - Affordable Housing,Maple Close,Enhancements,MAPLE CLOSE RECHARGE,11/02/2022,REDACTED INVOICE NUMBER,155621,2216.5,Capital,185870P,Brentwood Development Partnership Llp,W1D 3QR,0.00
Director Of Environment,Open Spaces,Buildings & Stakeholders,R&M Fix & Fit - General,VARIOUS WORKS - KGPF - ENV.HBUILDING,04/02/2022,REDACTED INVOICE NUMBER,155071,847.3,Revenue,444,Brentwood Lock & Safe,CM15 9DL,0.00
Director Of Environment,Depot Management & Admin,Depot Management & Admin,R&M Bldgs - General,KEY CUTTING,25/02/2022,REDACTED INVOICE NUMBER,154146,57,Revenue,444,Brentwood Lock & Safe,CM15 9DL,0.00
Director Corporate Resources,Asset Management,Asset Management,R&M Bldgs - General,SERVICING - BRENTWOOD CENTRE,01/02/2022,REDACTED INVOICE NUMBER,155236,"1,210.00",Revenue,445,Brentwood M & E Services Ltd,CM6 3HT,0.00
Director Corporate Resources,Asset Management,Asset Management,R&M Bldgs - General,DISTRIBUTION BOXES. BRENTWOOD CENTRE,04/02/2022,REDACTED INVOICE NUMBER,155438,"3,775.00",Revenue,445,Brentwood M & E Services Ltd,CM6 3HT,0.00
Director Corporate Resources,Asset Management,Asset Management,R&M Bldgs - General,ELECTRICAL WORK - NIGHTINGALE CENTRE,04/02/2022,REDACTED INVOICE NUMBER,155513,150.00,Revenue,445,Brentwood M & E Services Ltd,CM6 3HT,0.00
Director Corporate Resources,Asset Management,Asset Management,R&M Bldgs - General,HEATING ISSUE - NIGHTINGALE CENTRE,04/02/2022,REDACTED INVOICE NUMBER,155512,115.00,Revenue,445,Brentwood M & E Services Ltd,CM6 3HT,0.00
Director Of Environment,Open Spaces,Buildings & Stakeholders,R&M Fix & Fit - General,LIGHTING - DEPOT,08/02/2022,REDACTED INVOICE NUMBER,155235,1410,Revenue,445,Brentwood M & E Services Ltd,CM6 3HT,0.00
Capex Director Of C Resources,Asset Management,Asset Management Strategy,Enhancements,S/F COOKER / FRIDGE-FREEZER - DEPOT,15/02/2022,REDACTED INVOICE NUMBER,155238,935,Capital,445,Brentwood M & E Services Ltd,CM6 3HT,0.00
Director Corporate Resources,Asset Management,Asset Management,R&M Bldgs - General,BOILER WORKS - POPLARS LODGE,18/02/2022,REDACTED INVOICE NUMBER,155511,490.25,Revenue,445,Brentwood M & E Services Ltd,CM6 3HT,0.00
Director Corporate Resources,Office Accommodation,Office Facilities Management,R&M Bldgs - General,HEATING WORKS,18/02/2022,REDACTED INVOICE NUMBER,155510,150.00,Revenue,445,Brentwood M & E Services Ltd,CM6 3HT,0.00
Director Corporate Resources,Asset Management,Asset Management,R&M Bldgs - General,LONDON ROAD,22/02/2022,REDACTED INVOICE NUMBER,156092,120.00,Revenue,445,Brentwood M & E Services Ltd,CM6 3HT,0.00
Director Of Planning & Economy,Economic Development Total,Economic Development,Other Fees & Service,Bar takings,22/02/2022,REDACTED INVOICE NUMBER,155725,100.00,Revenue,470,Brentwood Theatre,CM15 8AG,0.00
Director Housing & Enforcement,Homelessness,B&B Accommodation,B & B Charges (Homelessness),HOMELESSNESS PREVENTION,01/02/2022,REDACTED INVOICE NUMBER,155209,1510.6,Revenue,28943,Britannia Inn Hotel,IG1 3BD,0.00
Director Housing & Enforcement,Homelessness,B&B Accommodation,B & B Charges (Homelessness),HOMELESSNESS PREVENTION,01/02/2022,REDACTED INVOICE NUMBER,155210,888.00,Revenue,28943,Britannia Inn Hotel,IG1 3BD,0.00
Hra Expenditure,Repairs And Maintenance,Responsive Void Repairs,Electricity,ELECTRICITY SUPPLY,01/02/2022,REDACTED INVOICE NUMBER,154048,"1,290.79",Revenue,492,British Gas Trading Limited (Please Use),GU95 1AB,0.00
Hra Expenditure,Repairs And Maintenance,Responsive Void Repairs,Electricity,ELECTRICITY SUPPLY,01/02/2022,REDACTED INVOICE NUMBER,155148,12.09,Revenue,492,British Gas Trading Limited (Please Use),GU95 1AB,0.00
Hra Expenditure,Repairs And Maintenance,Responsive Void Repairs,Electricity,ELECTRICITY SUPPLY,01/02/2022,REDACTED INVOICE NUMBER,155143,2.03,Revenue,492,British Gas Trading Limited (Please Use),GU95 1AB,0.00
Hra Expenditure,Repairs And Maintenance,Responsive Void Repairs,Electricity,ELECTRICITY SUPPLY,01/02/2022,REDACTED INVOICE NUMBER,155149,0.89,Revenue,492,British Gas Trading Limited (Please Use),GU95 1AB,0.00
Hra Expenditure,Repairs And Maintenance,Responsive Void Repairs,Electricity,ELECTRICITY SUPPLY,01/02/2022,REDACTED INVOICE NUMBER,155147,12.87,Revenue,492,British Gas Trading Limited (Please Use),GU95 1AB,0.00
Hra Expenditure,Repairs And Maintenance,Responsive Void Repairs,Electricity,ELECTRICITY SUPPLY,01/02/2022,REDACTED INVOICE NUMBER,154985,0.99,Revenue,492,British Gas Trading Limited (Please Use),GU95 1AB,0.00
Hra Expenditure,Repairs And Maintenance,Responsive Void Repairs,Electricity,ELECTRICITY SUPPLY,01/02/2022,REDACTED INVOICE NUMBER,155146,2.74,Revenue,492,British Gas Trading Limited (Please Use),GU95 1AB,0.00
Hra Expenditure,Repairs And Maintenance,Responsive Void Repairs,Electricity,ELECTRICITY SUPPLY,01/02/2022,REDACTED INVOICE NUMBER,154844,35.42,Revenue,492,British Gas Trading Limited (Please Use),GU95 1AB,0.00
Hra Expenditure,Repairs And Maintenance,Responsive Void Repairs,Electricity,ELECTRICITY SUPPLY,01/02/2022,REDACTED INVOICE NUMBER,154984,23.85,Revenue,492,British Gas Trading Limited (Please Use),GU95 1AB,0.00
Hra Expenditure,Repairs And Maintenance,Responsive Void Repairs,Gas,GAS SUPPLY,01/02/2022,REDACTED INVOICE NUMBER,154933,5.06,Revenue,492,British Gas Trading Limited (Please Use),GU95 1AB,0.00
Hra Expenditure,Repairs And Maintenance,Responsive Void Repairs,Gas,GAS SUPPLY,01/02/2022,REDACTED INVOICE NUMBER,155144,2.02,Revenue,492,British Gas Trading Limited (Please Use),GU95 1AB,0.00
Hra Expenditure,Repairs And Maintenance,Responsive Void Repairs,Gas,GAS SUPPLY,01/02/2022,REDACTED INVOICE NUMBER,155145,9.33,Revenue,492,British Gas Trading Limited (Please Use),GU95 1AB,0.00
Hra Expenditure,Repairs And Maintenance,Responsive Void Repairs,Electricity,ELECTRICITY SUPPLY,18/02/2022,REDACTED INVOICE NUMBER,155534,33.72,Revenue,492,British Gas Trading Limited (Please Use),GU95 1AB,0.00
Hra Expenditure,Repairs And Maintenance,Responsive Void Repairs,Gas,GAS SUPPLY,18/02/2022,REDACTED INVOICE NUMBER,155533,5.99,Revenue,492,British Gas Trading Limited (Please Use),GU95 1AB,0.00
Hra Expenditure,Repairs And Maintenance,Responsive Void Repairs,Electricity,ELECTRICITY SUPPLY,22/02/2022,REDACTED INVOICE NUMBER,153181,5.73,Revenue,492,British Gas Trading Limited (Please Use),GU95 1AB,0.00
Hra Expenditure,Repairs And Maintenance,Responsive Void Repairs,Gas,GAS SUPPLY,22/02/2022,REDACTED INVOICE NUMBER,153181,18.92,Revenue,492,British Gas Trading Limited (Please Use),GU95 1AB,0.00
Director Of Environment,Vehicle Fleet Management,Vehicle Fleet Management,Vehicle R&M - External,MAINTENANCE,11/02/2022,REDACTED INVOICE NUMBER,154550,548.6,Revenue,28207,Bucher Municipal Limited,RH4 1XF,0.00
Director Of Environment,Vehicle Fleet Management,Vehicle Fleet Management,Vehicle R&M - External,VEHICLE REPAIRS,25/02/2022,REDACTED INVOICE NUMBER,155330,186.25,Revenue,28207,Bucher Municipal Limited,RH4 1XF,0.00
Director Of Environment,Health & Food Safety,Food & Health Support,Agency Staff,PROJECT MANAGEMENT SUPPORT,11/02/2022,REDACTED INVOICE NUMBER,154851,1396.35,Revenue,28337,Buckingham Futures,HA7 4AW,0.00
Director Of Environment,Env Health & Licensing Admin,Env Health & Licensing Admin,Agency Staff,PROJECT MANAGEMENT SUPPORT,18/02/2022,REDACTED INVOICE NUMBER,154975,1869.84,Revenue,28337,Buckingham Futures,HA7 4AW,0.00
Director Of Environment,Vehicle Fleet Management,Vehicle Fleet Management,Vehicle Replacement Parts,PARTS,01/02/2022,REDACTED INVOICE NUMBER,154249,4.52,Revenue,25512,C V Components,EM8 7NH,0.00
Director Of Environment,Vehicle Fleet Management,Vehicle Fleet Management,Vehicle Replacement Parts,PARTS,01/02/2022,REDACTED INVOICE NUMBER,154252,16.6,Revenue,25512,C V Components,EM8 7NH,0.00
Director Of Environment,Vehicle Fleet Management,Vehicle Fleet Management,Vehicle Replacement Parts,PARTS,01/02/2022,REDACTED INVOICE NUMBER,154250,28,Revenue,25512,C V Components,EM8 7NH,0.00
Director Of Environment,Vehicle Fleet Management,Vehicle Fleet Management,Vehicle Replacement Parts,PARTS,01/02/2022,REDACTED INVOICE NUMBER,154251,51.21,Revenue,25512,C V Components,EM8 7NH,0.00
Director Of Environment,Vehicle Fleet Management,Vehicle Fleet Management,Vehicle Replacement Parts,PARTS,04/02/2022,REDACTED INVOICE NUMBER,154277,110.19,Revenue,25512,C V Components,EM8 7NH,0.00
Director Of Environment,Vehicle Fleet Management,Vehicle Fleet Management,Vehicle Replacement Parts,PARTS,04/02/2022,REDACTED INVOICE NUMBER,154275,11.72,Revenue,25512,C V Components,EM8 7NH,0.00
Director Of Environment,Vehicle Fleet Management,Vehicle Fleet Management,Vehicle Replacement Parts,PARTS,04/02/2022,REDACTED INVOICE NUMBER,154279,36.49,Revenue,25512,C V Components,EM8 7NH,0.00
Director Of Environment,Vehicle Fleet Management,Vehicle Fleet Management,Vehicle Replacement Parts,PARTS,04/02/2022,REDACTED INVOICE NUMBER,154274,11.72,Revenue,25512,C V Components,EM8 7NH,0.00
Director Of Environment,Vehicle Fleet Management,Vehicle Fleet Management,Vehicle Replacement Parts,PARTS,04/02/2022,REDACTED INVOICE NUMBER,154273,21.78,Revenue,25512,C V Components,EM8 7NH,0.00
Director Of Environment,Vehicle Fleet Management,Vehicle Fleet Management,Vehicle Replacement Parts,PARTS,04/02/2022,REDACTED INVOICE NUMBER,154318,23.76,Revenue,25512,C V Components,EM8 7NH,0.00
Director Of Environment,Vehicle Fleet Management,Vehicle Fleet Management,Vehicle Replacement Parts,PARTS,04/02/2022,REDACTED INVOICE NUMBER,154315,1.98,Revenue,25512,C V Components,EM8 7NH,0.00
Director Of Environment,Vehicle Fleet Management,Vehicle Fleet Management,Vehicle Replacement Parts,PARTS,04/02/2022,REDACTED INVOICE NUMBER,154439,139.5,Revenue,25512,C V Components,EM8 7NH,0.00
Director Of Environment,Vehicle Fleet Management,Vehicle Fleet Management,Vehicle Replacement Parts,PARTS,04/02/2022,REDACTED INVOICE NUMBER,154316,113.39,Revenue,25512,C V Components,EM8 7NH,0.00
Director Of Environment,Vehicle Fleet Management,Vehicle Fleet Management,Vehicle Replacement Parts,PARTS,04/02/2022,REDACTED INVOICE NUMBER,154276,399.93,Revenue,25512,C V Components,EM8 7NH,0.00
Director Of Environment,Vehicle Fleet Management,Vehicle Fleet Management,Vehicle Replacement Parts,PARTS,04/02/2022,REDACTED INVOICE NUMBER,154278,37.66,Revenue,25512,C V Components,EM8 7NH,0.00
Director Of Environment,Grounds Maintenance,Grounds Maintenance,Vehicle Replacement Parts,PARTS,08/02/2022,REDACTED INVOICE NUMBER,154468,45.9,Revenue,25512,C V Components,EM8 7NH,0.00
Director Of Environment,Vehicle Fleet Management,Vehicle Fleet Management,Vehicle Replacement Parts,PARTS,08/02/2022,REDACTED INVOICE NUMBER,154467,32.48,Revenue,25512,C V Components,EM8 7NH,0.00
Director Of Environment,Vehicle Fleet Management,Vehicle Fleet Management,Vehicle Replacement Parts,PARTS,08/02/2022,REDACTED INVOICE NUMBER,154563,148.17,Revenue,25512,C V Components,EM8 7NH,0.00
Director Of Environment,Vehicle Fleet Management,Vehicle Fleet Management,Vehicle Replacement Parts,PARTS,08/02/2022,REDACTED INVOICE NUMBER,154562,3.77,Revenue,25512,C V Components,EM8 7NH,0.00
Director Of Environment,Vehicle Fleet Management,Vehicle Fleet Management,Vehicle Replacement Parts,PARTS,08/02/2022,REDACTED INVOICE NUMBER,154466,11.55,Revenue,25512,C V Components,EM8 7NH,0.00
Director Of Environment,Vehicle Fleet Management,Vehicle Fleet Management,Vehicle Replacement Parts,PARTS,11/02/2022,REDACTED INVOICE NUMBER,154587,12.78,Revenue,25512,C V Components,EM8 7NH,0.00
Director Of Environment,Vehicle Fleet Management,Vehicle Fleet Management,Vehicle Replacement Parts,PARTS,11/02/2022,REDACTED INVOICE NUMBER,154586,36.49,Revenue,25512,C V Components,EM8 7NH,0.00
Director Of Environment,Vehicle Fleet Management,Vehicle Fleet Management,Vehicle Replacement Parts,PARTS,11/02/2022,REDACTED INVOICE NUMBER,154591,197.8,Revenue,25512,C V Components,EM8 7NH,0.00
Director Of Environment,Vehicle Fleet Management,Vehicle Fleet Management,Vehicle Replacement Parts,PARTS,11/02/2022,REDACTED INVOICE NUMBER,154589,82.07,Revenue,25512,C V Components,EM8 7NH,0.00
Director Of Environment,Vehicle Fleet Management,Vehicle Fleet Management,Vehicle Replacement Parts,PARTS,11/02/2022,REDACTED INVOICE NUMBER,154588,66.1,Revenue,25512,C V Components,EM8 7NH,0.00
Director Of Environment,Vehicle Fleet Management,Vehicle Fleet Management,Vehicle Replacement Parts,PARTS,11/02/2022,REDACTED INVOICE NUMBER,154585,223.27,Revenue,25512,C V Components,EM8 7NH,0.00
Director Of Environment,Vehicle Fleet Management,Vehicle Fleet Management,Vehicle Replacement Parts,PARTS,11/02/2022,REDACTED INVOICE NUMBER,154590,305,Revenue,25512,C V Components,EM8 7NH,0.00
Director Of Environment,Vehicle Fleet Management,Vehicle Fleet Management,Vehicle Replacement Parts,PARTS,11/02/2022,REDACTED INVOICE NUMBER,154855,82.07,Revenue,25512,C V Components,EM8 7NH,0.00
Director Of Environment,Vehicle Fleet Management,Vehicle Fleet Management,Vehicle Replacement Parts,PARTS,11/02/2022,REDACTED INVOICE NUMBER,154856,66.1,Revenue,25512,C V Components,EM8 7NH,0.00
Director Of Environment,Vehicle Fleet Management,Vehicle Fleet Management,Vehicle Replacement Parts,PARTS,11/02/2022,REDACTED INVOICE NUMBER,154857,148.17,Revenue,25512,C V Components,EM8 7NH,0.00
Director Of Environment,Vehicle Fleet Management,Vehicle Fleet Management,Vehicle Replacement Parts,PARTS,15/02/2022,REDACTED INVOICE NUMBER,154946,24.75,Revenue,25512,C V Components,EM8 7NH,0.00
Director Of Environment,Vehicle Fleet Management,Vehicle Fleet Management,Vehicle Replacement Parts,PARTS,15/02/2022,REDACTED INVOICE NUMBER,154871,45.84,Revenue,25512,C V Components,EM8 7NH,0.00
Director Of Environment,Vehicle Fleet Management,Vehicle Fleet Management,Vehicle Replacement Parts,PARTS,15/02/2022,REDACTED INVOICE NUMBER,154948,35.32,Revenue,25512,C V Components,EM8 7NH,0.00
Director Of Environment,Vehicle Fleet Management,Vehicle Fleet Management,Vehicle Replacement Parts,PARTS,15/02/2022,REDACTED INVOICE NUMBER,154949,25.94,Revenue,25512,C V Components,EM8 7NH,0.00
Director Of Environment,Vehicle Fleet Management,Vehicle Fleet Management,Vehicle Replacement Parts,PARTS,15/02/2022,REDACTED INVOICE NUMBER,154950,99.5,Revenue,25512,C V Components,EM8 7NH,0.00
Director Of Environment,Vehicle Fleet Management,Vehicle Fleet Management,Vehicle Replacement Parts,PARTS,15/02/2022,REDACTED INVOICE NUMBER,154951,540.04,Revenue,25512,C V Components,EM8 7NH,0.00
Director Of Environment,Vehicle Fleet Management,Vehicle Fleet Management,Vehicle Replacement Parts,PARTS,15/02/2022,REDACTED INVOICE NUMBER,154947,77.25,Revenue,25512,C V Components,EM8 7NH,0.00
Director Of Environment,Vehicle Fleet Management,Vehicle Fleet Management,Vehicle Replacement Parts,PARTS,15/02/2022,REDACTED INVOICE NUMBER,154870,56.8,Revenue,25512,C V Components,EM8 7NH,0.00
Director Of Environment,Vehicle Fleet Management,Vehicle Fleet Management,Vehicle Replacement Parts,PARTS,18/02/2022,REDACTED INVOICE NUMBER,154026,230.85,Revenue,25512,C V Components,EM8 7NH,0.00
Director Of Environment,Vehicle Fleet Management,Vehicle Fleet Management,Vehicle Replacement Parts,PARTS,18/02/2022,REDACTED INVOICE NUMBER,154964,37.78,Revenue,25512,C V Components,EM8 7NH,0.00
Director Of Environment,Vehicle Fleet Management,Vehicle Fleet Management,Vehicle Replacement Parts,PARTS,18/02/2022,REDACTED INVOICE NUMBER,154963,193.75,Revenue,25512,C V Components,EM8 7NH,0.00
Director Of Environment,Vehicle Fleet Management,Vehicle Fleet Management,Vehicle Replacement Parts,PARTS,18/02/2022,REDACTED INVOICE NUMBER,155074,49.28,Revenue,25512,C V Components,EM8 7NH,0.00
Director Of Environment,Vehicle Fleet Management,Vehicle Fleet Management,Vehicle Replacement Parts,PARTS,18/02/2022,REDACTED INVOICE NUMBER,155075,2686.68,Revenue,25512,C V Components,EM8 7NH,0.00
Director Of Environment,Vehicle Fleet Management,Vehicle Fleet Management,Vehicle Replacement Parts,PARTS,22/02/2022,REDACTED INVOICE NUMBER,155218,58,Revenue,25512,C V Components,EM8 7NH,0.00
Director Of Environment,Vehicle Fleet Management,Vehicle Fleet Management,Vehicle Replacement Parts,PARTS,25/02/2022,REDACTED INVOICE NUMBER,155254,391.71,Revenue,25512,C V Components,EM8 7NH,0.00
Director Of Environment,Vehicle Fleet Management,Vehicle Fleet Management,Vehicle Replacement Parts,PARTS,25/02/2022,REDACTED INVOICE NUMBER,155253,8.92,Revenue,25512,C V Components,EM8 7NH,0.00
Director Corporate Resources,Corporate Management,Corporate Management Costs,Bank Charges,Pay Point Transactions,18/02/2022,REDACTED INVOICE NUMBER,155888,140.87,Revenue,23084,Capita Bus. Serv Ltd (Pg Payments),DL1 9HN,0.00
Director Corporate Resources,Corporate Management,Corporate Management Costs,Bank Charges,TRANSACTIONS CHARGES SCHEDULE,18/02/2022,REDACTED INVOICE NUMBER,155879,5389.01,Revenue,23084,Capita Bus. Serv Ltd (Pg Payments),DL1 9HN,0.00
Director Corporate Resources,Corporate Finance,Corporate Finance,Consultancy Fees,AMEND ONLINE - PAYMENT PORTAL,04/02/2022,REDACTED INVOICE NUMBER,155319,1045,Revenue,560,Capita Business Services Ltd,SWIH 0XA,0.00
Director Corporate Resources,Corporate Management,Corporate Management Costs,Bank Charges,TRANSACTION CHARGES - JAN '22,25/02/2022,REDACTED INVOICE NUMBER,156104,140.87,Revenue,560,Capita Business Services Ltd,SWIH 0XA,0.00
Director Corporate Resources,Corporate Management,Corporate Management Costs,Bank Charges,TRANSACTIONS CHARGES SCHEDULE,25/02/2022,REDACTED INVOICE NUMBER,156103,5389.01,Revenue,560,Capita Business Services Ltd,SWIH 0XA,0.00
Hra Expenditure,Supervision And Management,Rent Collection & Recovery,Bank Charges,LEASEHOLD PAYMENTS,25/02/2022,REDACTED INVOICE NUMBER,156101,625,Revenue,560,Capita Business Services Ltd,SWIH 0XA,0.00
Chief Executive,Executive Board,Senior Leadership Team,Subscriptions,ASELA Subscription 2021/22,25/02/2022,REDACTED INVOICE NUMBER,155234,60000,Revenue,579,Castle Point Borough Council,SS7 ITF,0.00
Director Of Environment,Cemeteries,Cemeteries,Water,WATER SUPPLY,22/02/2022,REDACTED INVOICE NUMBER,154942,104.65,Revenue,26488,Castle Water Ltd,PH10 7BH,0.00
Hra Expenditure,"Rents, Rates & Other Charges","Rents, Rates & Other Charges",Water,WATER SUPPLY,25/02/2022,REDACTED INVOICE NUMBER,155875,234.13,Revenue,26488,Castle Water Ltd,PH10 7BH,0.00
Director Digital & Customer En,Digital Servs & Transformation,Ict Services,Telephones - General,CALL CHARGES - DEC '21,01/02/2022,REDACTED INVOICE NUMBER,154747,3268.64,Revenue,22769,Catalyst Amc Ltd,B77 3QU,0.00
Director Digital & Customer En,Digital Servs & Transformation,Ict Services,Telephones - General,CALL CHARGES - DEC '21,01/02/2022,REDACTED INVOICE NUMBER,154748,584,Revenue,22769,Catalyst Amc Ltd,B77 3QU,0.00
Director Digital & Customer En,Digital Servs & Transformation,Ict Services,Telephones - General,CALL CHARGES - JAN '21,01/02/2022,REDACTED INVOICE NUMBER,154746,32.21,Revenue,22769,Catalyst Amc Ltd,B77 3QU,0.00
Director Of Planning & Economy,Planning Development Managemt,Planning Development Managemt,Subs To Professional Bodies,RAMS ACCOUNTABLE BODY FEES,22/02/2022,REDACTED INVOICE NUMBER,155720,203.72,Revenue,28247,Chelmsford City Council,CM1 1JE,0.00
Director Of Environment,Parking,Parking Services,Managed Services,DVLA Enquiry Service. SEPT'21 - JAN'22,22/02/2022,REDACTED INVOICE NUMBER,155464,47.4,Revenue,656,Chipside Limited,SN15 5FD,0.00
Director Of Environment,Parking,Parking Services,Managed Services,HOSTING FACILITIES - FEB '22,22/02/2022,REDACTED INVOICE NUMBER,155463,80,Revenue,656,Chipside Limited,SN15 5FD,0.00
Director Of Environment,"Communities, Health & Leisure",Christmas Lights & Decorations,Contracted Services,Christmas Lighting 2021,04/02/2022,REDACTED INVOICE NUMBER,154847,7000,Revenue,1151,Christmas Illumination Ltd,RM15 6RS,0.00
Director Corporate Resources,Asset Management,Asset Management,R&M Bldgs - General,INTRUDER ALARM. DEPOT. 22/23,11/02/2022,REDACTED INVOICE NUMBER,154980,652.17,Revenue,674,Chubb Fire And Security Limited,BB1 2PR,0.00
Director Of Environment,Open Spaces,Buildings & Stakeholders,R&M Bldgs - General,INTRUDER ALARM. HARTSWOOD. 22/23,11/02/2022,REDACTED INVOICE NUMBER,154979,682.91,Revenue,674,Chubb Fire And Security Limited,BB1 2PR,0.00
Director Of Law & Governance,Electoral Services,Register Of Electors,Canvassers,A4 Single Sided Letter,01/02/2022,REDACTED INVOICE NUMBER,155221,68.5,Revenue,1000,Civica Electoral Services,N8 0NW,0.00
Director Of Law & Governance,Electoral Services,Election Services,External Printing,Electoral Registration,04/02/2022,REDACTED INVOICE NUMBER,155220,2731.37,Revenue,1000,Civica Electoral Services,N8 0NW,0.00
Hra Expenditure,Supervision And Management,Managing Tenancies,Subscriptions,KEYSTONE TEMPLATE CONFIGURATION,11/02/2022,REDACTED INVOICE NUMBER,155112,740,Revenue,693,Civica Uk Ltd,DY1 4TD,0.00
Balance Sheet,Balance Sheet,Balance Sheet,Agency - Csp,SIM INSTALLED ON CAMERA,11/02/2022,REDACTED INVOICE NUMBER,155665,420,Revenue,706,Clearview Communications,CM1 3AG,0.00
Director Housing & Enforcement,Cctv,Community Safety - Cctv,Software Support & Maintenance,CCTV CAMERA REPAIRS,18/02/2022,REDACTED INVOICE NUMBER,155061,204,Revenue,706,Clearview Communications,CM1 3AG,0.00
Balance Sheet,Balance Sheet,Balance Sheet,Insurance Account,INSURANCE CLAIM,01/02/2022,REDACTED INVOICE NUMBER,155201,0,Revenue,716,Clyde + Co,EC3A 7AR,0.00
Balance Sheet,Balance Sheet,Balance Sheet,Assize Trust Account,CROWN ST,01/02/2022,REDACTED INVOICE NUMBER,152006,80.93,Revenue,165549P,Contract Natural Gas Ltd,HG1 1EL,0.00
Balance Sheet,Balance Sheet,Balance Sheet,Assize Trust Account,CROWN ST,01/02/2022,REDACTED INVOICE NUMBER,154465,38.75,Revenue,25468,Crown Gas And Power,BL9 7HY,0.00
Balance Sheet,Balance Sheet,Balance Sheet,Assize Trust Account,CROWN ST,01/02/2022,REDACTED INVOICE NUMBER,153343,37.5,Revenue,25468,Crown Gas And Power,BL9 7HY,0.00
Balance Sheet,Balance Sheet,Balance Sheet,Assize Trust Account,CROWN ST,01/02/2022,REDACTED INVOICE NUMBER,151945,37.5,Revenue,25468,Crown Gas And Power,BL9 7HY,0.00
Balance Sheet,Balance Sheet,Balance Sheet,Assize Trust Account,CROWN ST,22/02/2022,REDACTED INVOICE NUMBER,155605,38.75,Revenue,25468,Crown Gas And Power,BL9 7HY,0.00
Director Of Planning & Economy,Economic Development Total,Economic Development,Other Fees & Service,LATE NIGHT SHOPPING EVENTS,04/02/2022,REDACTED INVOICE NUMBER,155064,820,Revenue,28886,Curly Cloud Face Painting,CM13 1RG,0.00
Director Of Environment,Open Spaces,Countryside Recreation Mtnce,R&M Grounds - Treework,TREE WORKS,04/02/2022,REDACTED INVOICE NUMBER,155054,"1,200.00",Revenue,27170,Cut Above,CM15 0PG,0.00
Hra Expenditure,Special Services,Grounds Maintenance,R&M Grounds - Treework,CLEAR IVY,11/02/2022,REDACTED INVOICE NUMBER,155243,350,Revenue,27170,Cut Above,CM15 0PG,0.00
Director Of Environment,Health & Food Safety,Food Safety Enforcement,Analytical Services,FOOD HYGIENE INSPECTIONS. NOV'21-JAN'22,15/02/2022,REDACTED INVOICE NUMBER,154978,600.00,Revenue,792,D Barham Limited,CO2 7HW,0.00
Hra Expenditure,"Rents, Rates & Other Charges","Rents, Rates & Other Charges",Premises Insurance Premiums,BUILDING INSURANCE,18/02/2022,REDACTED INVOICE NUMBER,154981,233.19,Revenue,24953,REDACTED PERSONAL DATA,REDACTED,0.00
Hra Expenditure,"Rents, Rates & Other Charges","Rents, Rates & Other Charges",Premises Insurance Premiums,RENT,18/02/2022,REDACTED INVOICE NUMBER,154982,134.5,Revenue,24953,REDACTED PERSONAL DATA,REDACTED,0.00
Director Of Planning & Economy,Planning Policy Total,Planning Policy,Contracted Services,LOCAL PLAN,04/02/2022,REDACTED INVOICE NUMBER,154471,2700,Revenue,26869,D.U.P. Limited,EC2A 4NE,0.00
Director Of Environment,"Communities, Health & Leisure",Community Development,Contracted Services,COMMUNITY DEVELOPMENT,01/02/2022,REDACTED INVOICE NUMBER,155258,5000,Revenue,201677P,Daily Bread,CM13 1JS,0.00
Director Digital & Customer En,Digital Servs & Transformation,Ict Services,Telephones - General,PHONE CHARGES,01/02/2022,REDACTED INVOICE NUMBER,154264,1363.54,Revenue,811,Daisy Communications Ltd,BB9 5SR,0.00
Director Of Environment,Vehicle Fleet Management,Vehicle Fleet Management,Purchases - General Equipment,LAUNDRY,08/02/2022,REDACTED INVOICE NUMBER,155223,14.41,Revenue,817,Danes Of Colchester Limited,CO4 9RY,0.00
Director Of Environment,Vehicle Fleet Management,Vehicle Fleet Management,Purchases - General Equipment,LAUNDRY,15/02/2022,REDACTED INVOICE NUMBER,155224,10.5,Revenue,817,Danes Of Colchester Limited,CO4 9RY,0.00
Director Of Planning & Economy,Building Control,Building Control - Chargeable,Other Professional Fees,STRUCTURAL SERVICES,15/02/2022,REDACTED INVOICE NUMBER,154943,74,Revenue,25248,Davies Burton Sweetlove Limited,CM2 5PW,0.00
Director Of Environment,Vehicle Fleet Management,Vehicle Fleet Management,Vehicle Replacement Parts,VEHICLE PARTS,25/02/2022,REDACTED INVOICE NUMBER,154485,398.61,Revenue,861,Dennis Eagle Ltd,CV34 6TE,0.00
Hra Expenditure,Supervision And Management,Rent Collection & Recovery,Legal Fees,RENT REGULATION ADVICE,01/02/2022,REDACTED INVOICE NUMBER,155241,589,Revenue,866,Devonshires Solicitors,EC2M 7DT,0.00
Balance Sheet,Balance Sheet,Balance Sheet,Agency - Csp,YOUTH WORK,11/02/2022,REDACTED INVOICE NUMBER,155255,500,Revenue,23855,Doddinghurst Road Church,CM15 9EH,0.00
Director Of Environment,"Communities, Health & Leisure",Community Development,Contracted Services,COMMUNITY FUND PAYMENT,18/02/2022,REDACTED INVOICE NUMBER,155836,5000,Revenue,23855,Doddinghurst Road Church,CM15 9EH,0.00
Director Housing & Enforcement,Housing Advice & Enabling,Housing Advice,Medical Reports,MEDICAL QUESTIONNAIRE,15/02/2022,REDACTED INVOICE NUMBER,155436,80,Revenue,24089,Dr Naeem & Partners,CM15 8AB,0.00
Director Of Environment,Golf Course,Golf Course,Agency Staff,PROJECT MANAGEMENT SUPPORT,01/02/2022,REDACTED INVOICE NUMBER,154957,390.6,Revenue,28029,Driver Hire (Chelmsford & Harlow),CM8 1BA,0.00
Director Of Environment,Street Services,Street Cleansing,Agency Staff,PROJECT MANAGEMENT SUPPORT,04/02/2022,REDACTED INVOICE NUMBER,154956,688.2,Revenue,28029,Driver Hire (Chelmsford & Harlow),CM8 1BA,0.00
Director Of Environment,Street Services,Street Cleansing,Agency Staff,PROJECT MANAGEMENT SUPPORT,04/02/2022,REDACTED INVOICE NUMBER,153809,688.2,Revenue,28029,Driver Hire (Chelmsford & Harlow),CM8 1BA,0.00
Director Of Environment,Street Services,Street Cleansing,Agency Staff,PROJECT MANAGEMENT SUPPORT,04/02/2022,REDACTED INVOICE NUMBER,154035,688.2,Revenue,28029,Driver Hire (Chelmsford & Harlow),CM8 1BA,0.00
Director Of Environment,Street Services,Street Cleansing,Agency Staff,PROJECT MANAGEMENT SUPPORT,04/02/2022,REDACTED INVOICE NUMBER,154284,139.5,Revenue,28029,Driver Hire (Chelmsford & Harlow),CM8 1BA,0.00
Director Of Environment,Street Services,Street Cleansing,Agency Staff,PROJECT MANAGEMENT SUPPORT,04/02/2022,REDACTED INVOICE NUMBER,154536,809.33,Revenue,28029,Driver Hire (Chelmsford & Harlow),CM8 1BA,0.00
Director Of Environment,Waste Management,Waste Collection Support,Agency Staff,PROJECT MANAGEMENT SUPPORT,04/02/2022,REDACTED INVOICE NUMBER,154956,5795.5,Revenue,28029,Driver Hire (Chelmsford & Harlow),CM8 1BA,0.00
Director Of Environment,Waste Management,Waste Collection Support,Agency Staff,PROJECT MANAGEMENT SUPPORT,04/02/2022,REDACTED INVOICE NUMBER,153809,5082,Revenue,28029,Driver Hire (Chelmsford & Harlow),CM8 1BA,0.00
Director Of Environment,Waste Management,Waste Collection Support,Agency Staff,PROJECT MANAGEMENT SUPPORT,04/02/2022,REDACTED INVOICE NUMBER,154035,5101.6,Revenue,28029,Driver Hire (Chelmsford & Harlow),CM8 1BA,0.00
Director Of Environment,Waste Management,Waste Collection Support,Agency Staff,PROJECT MANAGEMENT SUPPORT,04/02/2022,REDACTED INVOICE NUMBER,154284,5920,Revenue,28029,Driver Hire (Chelmsford & Harlow),CM8 1BA,0.00
Director Of Environment,Waste Management,Waste Collection Support,Agency Staff,PROJECT MANAGEMENT SUPPORT,04/02/2022,REDACTED INVOICE NUMBER,154536,7305.29,Revenue,28029,Driver Hire (Chelmsford & Harlow),CM8 1BA,0.00
Director Of Environment,Street Services,Street Cleansing,Agency Staff,PROJECT MANAGEMENT SUPPORT,08/02/2022,REDACTED INVOICE NUMBER,155139,727.58,Revenue,28029,Driver Hire (Chelmsford & Harlow),CM8 1BA,0.00
Director Of Environment,Waste Management,Waste Collection Support,Agency Staff,PROJECT MANAGEMENT SUPPORT,08/02/2022,REDACTED INVOICE NUMBER,155139,2986.6,Revenue,28029,Driver Hire (Chelmsford & Harlow),CM8 1BA,0.00
Director Of Environment,Golf Course,Golf Course,Agency Staff,PROJECT MANAGEMENT SUPPORT,11/02/2022,REDACTED INVOICE NUMBER,155136,390.6,Revenue,28029,Driver Hire (Chelmsford & Harlow),CM8 1BA,0.00
Director Of Environment,Golf Course,Golf Course,Agency Staff,PROJECT MANAGEMENT SUPPORT,15/02/2022,REDACTED INVOICE NUMBER,155429,409.2,Revenue,28029,Driver Hire (Chelmsford & Harlow),CM8 1BA,0.00
Director Of Environment,Street Services,Street Cleansing,Agency Staff,PROJECT MANAGEMENT SUPPORT,15/02/2022,REDACTED INVOICE NUMBER,155428,688.2,Revenue,28029,Driver Hire (Chelmsford & Harlow),CM8 1BA,0.00
Director Of Environment,Waste Management,Waste Collection Support,Agency Staff,PROJECT MANAGEMENT SUPPORT,15/02/2022,REDACTED INVOICE NUMBER,155428,2752.8,Revenue,28029,Driver Hire (Chelmsford & Harlow),CM8 1BA,0.00
Director Of Environment,Golf Course,Golf Course,Agency Staff,PROJECT MANAGEMENT SUPPORT,22/02/2022,REDACTED INVOICE NUMBER,155704,409.2,Revenue,28029,Driver Hire (Chelmsford & Harlow),CM8 1BA,0.00
Director Of Environment,Waste Management,Waste Collection Support,Agency Staff,PROJECT MANAGEMENT SUPPORT,25/02/2022,REDACTED INVOICE NUMBER,155705,2640.6,Revenue,28029,Driver Hire (Chelmsford & Harlow),CM8 1BA,0.00
Balance Sheet,Balance Sheet,Balance Sheet,Ctax 15 Jan Prior Surplus Ecc,PRECEPTS - FEBRUARY '22,04/02/2022,REDACTED INVOICE NUMBER,155449,9729,Revenue,22442,Ecc Precept,.,0.00
Balance Sheet,Balance Sheet,Balance Sheet,C Tax Ecc Precept,PRECEPTS - FEBRUARY '22,04/02/2022,REDACTED INVOICE NUMBER,155449,4053242,Revenue,22442,Ecc Precept,.,0.00
Director Corporate Resources,Council Tax & Nndr,Council Tax Collection,Grants/Contributions - Ecc,PRECEPTS - FEBRUARY '22,04/02/2022,REDACTED INVOICE NUMBER,155449,-5641,Revenue,22442,Ecc Precept,.,0.00
Hra Expenditure,Supervision And Management,Policy And Management,Consultancy Fees,CONSULTANCY,15/02/2022,REDACTED INVOICE NUMBER,155487,765,Revenue,27607,Echelon Consultancy Limited,AL1 4TB,0.00
Hra Expenditure,Supervision And Management,Rent Collection & Recovery,Other Professional Fees,EPCS,01/02/2022,REDACTED INVOICE NUMBER,154197,45,Revenue,22377,Eco Approach Ltd,BR3 1AT,0.00
Director Of Environment,Waste Management,Refuse Waste,Purchases - Bins,BINS,08/02/2022,REDACTED INVOICE NUMBER,154986,6041.8,Revenue,995,Egbert H Taylor + Company Ltd.,WR9 0QZ,0.00
Director Of Environment,Grounds Maintenance,Grounds Maintenance,Equipment & Tools - R&M,MACHINERY,11/02/2022,REDACTED INVOICE NUMBER,153322,495,Revenue,1050,Ernest Doe & Sons Ltd,CM9 6QH,0.00
Director Of Environment,Grounds Maintenance,Grounds Maintenance,Equipment & Tools - R&M,SHREDDER KIT,11/02/2022,REDACTED INVOICE NUMBER,153501,790,Revenue,1050,Ernest Doe & Sons Ltd,CM9 6QH,0.00
Hra Expenditure,"Rents, Rates & Other Charges","Rents, Rates & Other Charges",Water,WATER SUPPLY,22/02/2022,REDACTED INVOICE NUMBER,155932,239.36,Revenue,1058,Essex + Suffolk Water,DH1 9TX,0.00
Director Of Planning & Economy,Planning Development Managemt,Planning Development Managemt,Consultancy Fees,CONSERVATION ADVICE,15/02/2022,REDACTED INVOICE NUMBER,155325,449,Revenue,1075,Essex County Council,CM1 1JZ,0.00
Director Of Planning & Economy,Planning Development Managemt,Planning Development Managemt,Other Professional Fees,HERITAGE STATEMENTS,18/02/2022,REDACTED INVOICE NUMBER,155717,108,Revenue,1075,Essex County Council,CM1 1JZ,0.00
Director Corporate Resources,Corporate Fraud,Fraud,Software Support & Maintenance,SEARCHES,11/02/2022,REDACTED INVOICE NUMBER,154473,22.6,Revenue,1126,Experian Ltd,NG80 1ZZ,0.00
Director Corporate Resources,Corporate Fraud,Fraud,Software Support & Maintenance,SEARCHES - NOVEMBER '21,11/02/2022,REDACTED INVOICE NUMBER,153960,33.9,Revenue,1126,Experian Ltd,NG80 1ZZ,0.00
Capex Director Of Environment,Environmental Initiatives,S106 16 Westwood Avenue,R&M Fix & Fit - General,CIS ERROR B11190,08/02/2022,REDACTED INVOICE NUMBER,154450,285,Capital,1134,F J Britten Landscapes Ltd,CM3 8BG,0.00
Director Of Environment,Open Spaces,Buildings & Stakeholders,R&M Fix & Fit - General,To supply and install man hole,15/02/2022,REDACTED INVOICE NUMBER,154938,121,Revenue,1134,F J Britten Landscapes Ltd,CM3 8BG,0.00
Balance Sheet,Balance Sheet,Balance Sheet,Ctax 15 Jan Prior Surplus Fire,PRECEPTS - FEBRUARY '22,04/02/2022,REDACTED INVOICE NUMBER,155446,544,Revenue,22443,Fire Precept,.,0.00
Balance Sheet,Balance Sheet,Balance Sheet,C Tax Fire Precept,PRECEPTS - FEBRUARY '22,04/02/2022,REDACTED INVOICE NUMBER,155446,223351,Revenue,22443,Fire Precept,.,0.00
Balance Sheet,Balance Sheet,Balance Sheet,Nndr Fire Est Share(Precept),PRECEPTS - FEBRUARY '22,04/02/2022,REDACTED INVOICE NUMBER,155446,24472,Revenue,22443,Fire Precept,.,0.00
Director Corporate Resources,Council Tax & Nndr,Council Tax Collection,Grants/Contributions - Fire,PRECEPTS - FEBRUARY '22,04/02/2022,REDACTED INVOICE NUMBER,155446,-1869,Revenue,22443,Fire Precept,.,0.00
Director Of Environment,Golf Course,Golf Course,Legal Fees,DD FEB 22,08/02/2022,REDACTED INVOICE NUMBER,155540,23.19,Revenue,27884,First Data Global Leasing (Dd Payments),SS14 3WF,0.00
Director Of Environment,"Communities, Health & Leisure",Sports & Social Venues,Bank Charges,DIRECT DEBIT FEB 22,22/02/2022,REDACTED INVOICE NUMBER,155992,40,Revenue,27884,First Data Global Leasing (Dd Payments),SS14 3WF,0.00
Director Of Environment,Golf Course,Golf Course,Bank Charges,DD FEB 22,22/02/2022,REDACTED INVOICE NUMBER,155957,19,Revenue,27884,First Data Global Leasing (Dd Payments),SS14 3WF,0.00
Director Corporate Resources,Asset Management,Asset Management,R&M Bldgs - General,VARIOUS WORKS,11/02/2022,REDACTED INVOICE NUMBER,154593,3211,Revenue,1163,Fisk Building Contractors Ltd,CM11 1PW,0.00
Capex Director Of C Resources,Asset Management,Asset Management Strategy,Enhancements,HUTTON POPLAR ROOF,18/02/2022,REDACTED INVOICE NUMBER,155113,5118,Capital,1163,Fisk Building Contractors Ltd,CM11 1PW,0.00
Director Of Environment,Open Spaces,Buildings & Stakeholders,R&M Fix & Fit - General,KGPF - STAIR REPAIR DEPOT,18/02/2022,REDACTED INVOICE NUMBER,155116,620,Revenue,1163,Fisk Building Contractors Ltd,CM11 1PW,0.00
Director Corporate Resources,Asset Management,Asset Management,R&M Bldgs - General,Brentwood Centre,22/02/2022,REDACTED INVOICE NUMBER,156096,570,Revenue,1163,Fisk Building Contractors Ltd,CM11 1PW,0.00
Director Corporate Resources,Office Accommodation,Office Facilities Management,R&M Bldgs - General,SNAGGING - FLAT 8 TOWN HALL,25/02/2022,REDACTED INVOICE NUMBER,155491,710,Revenue,1163,Fisk Building Contractors Ltd,CM11 1PW,0.00
Director Of Environment,Parking,Parking Services,Bank Charges,SERVICES FOR PARKING EQUIPMENT. DEC'21,08/02/2022,REDACTED INVOICE NUMBER,154566,803.76,Revenue,4187,Flowbird Smart City Uk Ltd (Was Parkeon),BH12 5AG,0.00
Director Of Environment,Parking,Parking Services,Equipment & Tools - R&M,SERVICES FOR PARKING EQUIPMENT - FEB'22,11/02/2022,REDACTED INVOICE NUMBER,154853,342,Revenue,4187,Flowbird Smart City Uk Ltd (Was Parkeon),BH12 5AG,0.00
Hra Expenditure,Repairs And Maintenance,Responsive Void Repairs,Gas,GAS SUPPLY,01/02/2022,REDACTED INVOICE NUMBER,155102,257.03,Revenue,1222,Gazprom Energy,M3 3GY,0.00
Hra Expenditure,Special Services,Drake House,Gas,GAS SUPPLY,01/02/2022,REDACTED INVOICE NUMBER,155090,2989.73,Revenue,1222,Gazprom Energy,M3 3GY,0.00
Hra Expenditure,Special Services,Four Oaks,Gas,GAS SUPPLY,01/02/2022,REDACTED INVOICE NUMBER,155100,875.03,Revenue,1222,Gazprom Energy,M3 3GY,0.00
Hra Expenditure,Special Services,Chichester House,Gas,GAS SUPPLY,11/02/2022,REDACTED INVOICE NUMBER,155098,1510.22,Revenue,1222,Gazprom Energy,M3 3GY,0.00
Hra Expenditure,Special Services,Communal Heating,Gas,GAS SUPPLY,11/02/2022,REDACTED INVOICE NUMBER,155084,9.9,Revenue,1222,Gazprom Energy,M3 3GY,0.00
Hra Expenditure,Special Services,Communal Heating,Gas,GAS SUPPLY,11/02/2022,REDACTED INVOICE NUMBER,155098,647.21,Revenue,1222,Gazprom Energy,M3 3GY,0.00
Hra Expenditure,Special Services,Communal Heating,Gas,GAS SUPPLY,11/02/2022,REDACTED INVOICE NUMBER,155085,13.73,Revenue,1222,Gazprom Energy,M3 3GY,0.00
Hra Expenditure,Special Services,Communal Heating,Gas,GAS SUPPLY,11/02/2022,REDACTED INVOICE NUMBER,155086,62.96,Revenue,1222,Gazprom Energy,M3 3GY,0.00
Hra Expenditure,Special Services,Communal Heating,Gas,GAS SUPPLY,11/02/2022,REDACTED INVOICE NUMBER,155082,38.75,Revenue,1222,Gazprom Energy,M3 3GY,0.00
Hra Expenditure,Special Services,Communal Heating,Gas,GAS SUPPLY,11/02/2022,REDACTED INVOICE NUMBER,155088,111.54,Revenue,1222,Gazprom Energy,M3 3GY,0.00
Hra Expenditure,Special Services,Communal Heating,Gas,GAS SUPPLY,11/02/2022,REDACTED INVOICE NUMBER,155097,9.59,Revenue,1222,Gazprom Energy,M3 3GY,0.00
Hra Expenditure,Special Services,Communal Heating,Gas,GAS SUPPLY,11/02/2022,REDACTED INVOICE NUMBER,155092,3.2,Revenue,1222,Gazprom Energy,M3 3GY,0.00
Hra Expenditure,Special Services,Communal Heating,Gas,GAS SUPPLY,11/02/2022,REDACTED INVOICE NUMBER,155096,1545,Revenue,1222,Gazprom Energy,M3 3GY,0.00
Hra Expenditure,Special Services,Communal Heating,Gas,GAS SUPPLY,11/02/2022,REDACTED INVOICE NUMBER,155093,37.8,Revenue,1222,Gazprom Energy,M3 3GY,0.00
Hra Expenditure,Special Services,Communal Heating,Gas,GAS SUPPLY,11/02/2022,REDACTED INVOICE NUMBER,155089,5.7,Revenue,1222,Gazprom Energy,M3 3GY,0.00
Hra Expenditure,Special Services,Communal Heating,Gas,GAS SUPPLY,11/02/2022,REDACTED INVOICE NUMBER,155099,973.54,Revenue,1222,Gazprom Energy,M3 3GY,0.00
Hra Expenditure,Special Services,Ingleton House,Gas,GAS SUPPLY,11/02/2022,REDACTED INVOICE NUMBER,155082,116.31,Revenue,1222,Gazprom Energy,M3 3GY,0.00
Hra Expenditure,Special Services,Oldfields,Gas,GAS SUPPLY,11/02/2022,REDACTED INVOICE NUMBER,155099,2251.28,Revenue,1222,Gazprom Energy,M3 3GY,0.00
Hra Expenditure,Special Services,St Georges Court,Gas,GAS SUPPLY,11/02/2022,REDACTED INVOICE NUMBER,155092,6.7,Revenue,1222,Gazprom Energy,M3 3GY,0.00
Hra Expenditure,Special Services,St Georges Court,Gas,GAS SUPPLY,11/02/2022,REDACTED INVOICE NUMBER,155096,2869.39,Revenue,1222,Gazprom Energy,M3 3GY,0.00
Hra Expenditure,Special Services,The Gables,Gas,GAS SUPPLY,11/02/2022,REDACTED INVOICE NUMBER,155093,142.91,Revenue,1222,Gazprom Energy,M3 3GY,0.00
Hra Expenditure,Special Services,The Gables,Gas,GAS SUPPLY,11/02/2022,REDACTED INVOICE NUMBER,155089,21.52,Revenue,1222,Gazprom Energy,M3 3GY,0.00
Hra Expenditure,Special Services,Victoria Court,Gas,GAS SUPPLY,11/02/2022,REDACTED INVOICE NUMBER,155099,2859.85,Revenue,1222,Gazprom Energy,M3 3GY,0.00
Director Corporate Resources,Asset Management,Asset Management,Gas,GAS SUPPLY,22/02/2022,REDACTED INVOICE NUMBER,155435,945.55,Revenue,1222,Gazprom Energy,M3 3GY,0.00
Director Corporate Resources,Asset Management,Asset Management,Gas,GAS SUPPLY,22/02/2022,REDACTED INVOICE NUMBER,155434,290.23,Revenue,1222,Gazprom Energy,M3 3GY,0.00
Director Corporate Resources,Asset Management,Asset Management,Gas,GAS SUPPLY,22/02/2022,REDACTED INVOICE NUMBER,155433,-84.81,Revenue,1222,Gazprom Energy,M3 3GY,0.00
Director Of Environment,Depot Management & Admin,Depot Management & Admin,Gas,GAS SUPPLY,25/02/2022,REDACTED INVOICE NUMBER,156279,60.95,Revenue,1222,Gazprom Energy,M3 3GY,0.00
Director Corporate Resources,Asset Management,Asset Management,Search Fees,LAND REG DD'S JAN 22,08/02/2022,REDACTED INVOICE NUMBER,155496,141,Revenue,22013,H M Land Registry,.,0.00
Director Of Environment,Open Spaces,Amenity Greens,Search Fees,LAND REG DD'S JAN 22,08/02/2022,REDACTED INVOICE NUMBER,155496,3,Revenue,22013,H M Land Registry,.,0.00
Director Of Planning & Economy,Planning Development Managemt,Planning Development Managemt,Search Fees,LAND REG DD'S JAN 22,08/02/2022,REDACTED INVOICE NUMBER,155496,15,Revenue,22013,H M Land Registry,.,0.00
Hra Expenditure,Supervision And Management,Rent Collection & Recovery,Search Fees,LAND REG DD'S JAN 22,08/02/2022,REDACTED INVOICE NUMBER,155496,48,Revenue,22013,H M Land Registry,.,0.00
Director Of Environment,Vehicle Fleet Management,Vehicle Fleet Management,Purchases - General Equipment,workshop equipment,08/02/2022,REDACTED INVOICE NUMBER,154940,340,Revenue,1322,Haps Garage Equipment Ltd,SS7 3YT,0.00
Director Of Environment,Vehicle Fleet Management,Vehicle Fleet Management,Vehicle R&M - External,MONTHLY SERVICE INVOICE - EU17 TXV,01/02/2022,REDACTED INVOICE NUMBER,154457,255,Revenue,1329,Harris Commercial Repairs Limited,RM20 4AU,0.00
Director Of Environment,Vehicle Fleet Management,Vehicle Fleet Management,Vehicle R&M - External,MONTHLY SERVICE INVOICE - TRAILER,01/02/2022,REDACTED INVOICE NUMBER,154456,125,Revenue,1329,Harris Commercial Repairs Limited,RM20 4AU,0.00
Director Corporate Resources,Corporate Finance,Corporate Finance,Agency Staff,PROJECT MANAGEMENT SUPPORT,08/02/2022,REDACTED INVOICE NUMBER,155455,1900,Revenue,27208,Hays Specialist Recruitment Ltd,KT3 4QF,0.00
Director Corporate Resources,Corporate Finance,Corporate Finance,Agency Staff,PROJECT MANAGEMENT SUPPORT,15/02/2022,REDACTED INVOICE NUMBER,155718,1900,Revenue,27208,Hays Specialist Recruitment Ltd,KT3 4QF,0.00
Director Corporate Resources,Corporate Finance,Corporate Finance,Agency Staff,PROJECT MANAGEMENT SUPPORT,22/02/2022,REDACTED INVOICE NUMBER,155892,1520,Revenue,27208,Hays Specialist Recruitment Ltd,KT3 4QF,0.00
Director Of Law & Governance,Democratic Services & Support,Remembrance Day,Miscellaneous Expenses,REMEMBRANCE DAY,04/02/2022,REDACTED INVOICE NUMBER,155052,1615,Revenue,1353,Headline Security Limited,CM14 4RA,0.00
Hra Expenditure,Supervision And Management,Rent Collection & Recovery,Court Fees,COURT FEES,04/02/2022,REDACTED INVOICE NUMBER,155508,260,Revenue,1397,Hmcts,NP20 9FN,0.00
Director Of Environment,Golf Course,Golf Course,Vehicle R&M - External,LEAF COLLECTOR REPAIRS,11/02/2022,REDACTED INVOICE NUMBER,155370,158.16,Revenue,1419,Hopedima Engineering Ltd,CM14 5SU,0.00
Director Of Environment,Grounds Maintenance,Grounds Maintenance,Purchases - General Equipment,STIHL REPAIRS,11/02/2022,REDACTED INVOICE NUMBER,155369,45,Revenue,1419,Hopedima Engineering Ltd,CM14 5SU,0.00
Director Of Environment,Grounds Maintenance,Grounds Maintenance,Vehicle R&M - External,ISEKI REPAIRS,11/02/2022,REDACTED INVOICE NUMBER,155368,312.5,Revenue,1419,Hopedima Engineering Ltd,CM14 5SU,0.00
Director Of Environment,Grounds Maintenance,Grounds Maintenance,Vehicle R&M - External,JOHN DEERE SERVICE,11/02/2022,REDACTED INVOICE NUMBER,155372,1388.58,Revenue,1419,Hopedima Engineering Ltd,CM14 5SU,0.00
Director Of Environment,Grounds Maintenance,Grounds Maintenance,Vehicle R&M - External,WRIGHTS STANDER SERVICE,11/02/2022,REDACTED INVOICE NUMBER,155371,382.04,Revenue,1419,Hopedima Engineering Ltd,CM14 5SU,0.00
Director Of Environment,Grounds Maintenance,Grounds Maintenance,Vehicle R&M - External,JOHN DEERE SERVICE,18/02/2022,REDACTED INVOICE NUMBER,155531,1353.02,Revenue,1419,Hopedima Engineering Ltd,CM14 5SU,0.00
Hra Expenditure,Supervision And Management,Policy And Management,Contracted Services,HRA Business Planning,04/02/2022,REDACTED INVOICE NUMBER,154260,4452,Revenue,28451,Housing Finance Associates Ltd,GL18 1TE,0.00
Hra Expenditure,Supervision And Management,Managing Tenancies,Subscriptions,Homeswapper Subscription,08/02/2022,REDACTED INVOICE NUMBER,154565,5702.93,Revenue,1425,Housing Partners Limited,EC2V 8EA,0.00
Director Housing & Enforcement,Community Safety,Corporate Enforcement,Enforcement,REBILLING OF VAT - FPN COLLECTIONS,04/02/2022,REDACTED INVOICE NUMBER,154262,0,Revenue,28449,Hsg Facilities Management Ltd,CF24 5EL,0.00
Balance Sheet,Balance Sheet,Balance Sheet,Cis Contractors,CIS REFUND 24.9.21,08/02/2022,REDACTED INVOICE NUMBER,154409,31,Revenue,28423,Hutchison Technologies,DD2 3SN,0.00
Director Of Planning & Economy,Economic Development Total,Economic Development,Other Fees & Service,PROFESSIONAL FEE - CROWN STREET,11/02/2022,REDACTED INVOICE NUMBER,154577,1945,Revenue,28424,Ian Booth Consultant Engineer Ltd,IP8 3DG,0.00
Director Corporate Resources,Office Accommodation,Office Accommodation,Postage Costs Direct,Imail Hybrid Premium,04/02/2022,REDACTED INVOICE NUMBER,155356,16.09,Revenue,5008,Imail Comms Ltd,CV3 4LA,0.00
Director Corporate Resources,Office Accommodation,Office Accommodation,Postage Costs Direct,Imail Hybrid Premium,11/02/2022,REDACTED INVOICE NUMBER,155667,221.88,Revenue,5008,Imail Comms Ltd,CV3 4LA,0.00
Director Corporate Resources,Office Accommodation,Office Accommodation,Postage Costs Direct,Imail Hybrid Premium,22/02/2022,REDACTED INVOICE NUMBER,155982,103.28,Revenue,5008,Imail Comms Ltd,CV3 4LA,0.00
Director Corporate Resources,Office Accommodation,Office Accommodation,Postage Costs Direct,Imail Hybrid Premium,25/02/2022,REDACTED INVOICE NUMBER,156358,35.92,Revenue,5008,Imail Comms Ltd,CV3 4LA,0.00
Director Of Environment,Open Spaces,Amenity Greens,R&M Grounds - Treework,TREE WORKS,08/02/2022,REDACTED INVOICE NUMBER,155334,675,Revenue,1507,Ingatestone Tree Surgery,CM15 0TZ,0.00
Hra Expenditure,Special Services,Grounds Maintenance,R&M Grounds - Treework,TREE WORKS ,18/02/2022,REDACTED INVOICE NUMBER,155527,780.00,Revenue,1507,Ingatestone Tree Surgery,CM15 0TZ,0.00
Director Corporate Resources,Human Resources,Human Resources,Occupational Health,MANAGEMENT REFERRAL,25/02/2022,REDACTED INVOICE NUMBER,156111,128,Revenue,28613,Innovate Healthcare Management Group,SK11 1TA,0.00
Director Corporate Resources,Human Resources,Human Resources,Occupational Health,MANAGEMENT REFERRAL,25/02/2022,REDACTED INVOICE NUMBER,156113,128,Revenue,28613,Innovate Healthcare Management Group,SK11 1TA,0.00
Director Corporate Resources,Human Resources,Human Resources,Occupational Health,MANAGEMENT REFERRAL,25/02/2022,REDACTED INVOICE NUMBER,156112,128,Revenue,28613,Innovate Healthcare Management Group,SK11 1TA,0.00
Director Corporate Resources,Human Resources,Human Resources,Occupational Health,MANAGEMENT REFERRAL,25/02/2022,REDACTED INVOICE NUMBER,156114,128.00,Revenue,28613,Innovate Healthcare Management Group,SK11 1TA,0.00
Director Of Environment,Vehicle Fleet Management,Vehicle Fleet Management,Vehicle Replacement Parts,VEHICLE PARTS,25/02/2022,REDACTED INVOICE NUMBER,153966,601.7,Revenue,1533,Interwaste Municipal Limited,WV10 7PA,0.00
Director Of Environment,Vehicle Fleet Management,Vehicle Fleet Management,Vehicle Replacement Parts,VEHICLE PARTS,25/02/2022,REDACTED INVOICE NUMBER,155110,473.03,Revenue,1533,Interwaste Municipal Limited,WV10 7PA,0.00
Director Of Environment,Vehicle Fleet Management,Vehicle Fleet Management,Vehicle Replacement Parts,VEHICLE PARTS,25/02/2022,REDACTED INVOICE NUMBER,155111,752.51,Revenue,1533,Interwaste Municipal Limited,WV10 7PA,0.00
Director Of Environment,Vehicle Fleet Management,Vehicle Fleet Management,Vehicle Replacement Parts,VEHICLE PARTS,25/02/2022,REDACTED INVOICE NUMBER,155109,352.1,Revenue,1533,Interwaste Municipal Limited,WV10 7PA,0.00
Hra Expenditure,Supervision And Management,Managing Tenancies,Decant Costs,DECANT COSTS,18/02/2022,REDACTED INVOICE NUMBER,155981,6424.23,Revenue,202780P,REDACTED PERSONAL DATA,REDACTED,0.00
Capex Director Of Environment,Other Environmental Services,Disabled Facilities Grant,Grants - General,DISABLED FACILITIES GRANT,08/02/2022,REDACTED INVOICE NUMBER,155205,6504,Capital,1570,J W Commons + Sons,CM15 9QB,0.00
Director Of Environment,Env Pro. Noise & Pollution,Env Pro. Noise & Pollution,Analytical Services,NOISE AND POLLUTION,18/02/2022,REDACTED INVOICE NUMBER,155492,2960,Revenue,1570,J W Commons + Sons,CM15 9QB,0.00
Capex Director Of Housing,Housing - Affordable Housing,Brookfield Project,Enhancements,REMOVAL COSTS,04/02/2022,REDACTED INVOICE NUMBER,154288,450,Capital,1623,Jeakins Domestic + Comm Removals Ltd,SS15 6PZ,0.00
Hra Expenditure,Supervision And Management,Managing Tenancies,Decant Costs,REMOVAL COSTS,11/02/2022,REDACTED INVOICE NUMBER,154280,83.33,Revenue,1623,Jeakins Domestic + Comm Removals Ltd,SS15 6PZ,0.00
Capex Director Of Housing,Housing - Affordable Housing,Brookfield Project,Enhancements,REMOVAL COSTS,25/02/2022,REDACTED INVOICE NUMBER,155723,450,Capital,1623,Jeakins Domestic + Comm Removals Ltd,SS15 6PZ,0.00
Director Of Environment,Vehicle Fleet Management,Vehicle Fleet Management,Vehicle Replacement Parts,VEHICLE PARTS,04/02/2022,REDACTED INVOICE NUMBER,155063,779.85,Revenue,25305,Jennings Engineering Supplies Ltd,CM3 6LG,0.00
Director Of Environment,Vehicle Fleet Management,Vehicle Fleet Management,Vehicle Replacement Parts,VEHICLE PARTS,25/02/2022,REDACTED INVOICE NUMBER,155242,243.50,Revenue,25305,Jennings Engineering Supplies Ltd,CM3 6LG,0.00
Director Of Environment,Vehicle Fleet Management,Vehicle Fleet Management,Vehicle Replacement Parts,VEHICLE PARTS,25/02/2022,REDACTED INVOICE NUMBER,155845,265.3,Revenue,25305,Jennings Engineering Supplies Ltd,CM3 6LG,0.00
Balance Sheet,Balance Sheet,Balance Sheet,Agency - Csp,STRAWS / DRINKS COVERS,11/02/2022,REDACTED INVOICE NUMBER,153054,270,Revenue,24719,Jne Security Ltd,LL12 8LX,0.00
Director Of Planning & Economy,Planning Development Managemt,Planning Development Managemt,Consultancy Fees,DESIGN CONSULTEE REPORTS,15/02/2022,REDACTED INVOICE NUMBER,155615,5426.4,Revenue,28185,Joseph Hardy & Company Ltd,CM4 9TA,0.00
Hra Expenditure,Supervision And Management,Policy And Management,Project Management Support,SHDP January 2022,15/02/2022,REDACTED INVOICE NUMBER,155617,3988.8,Revenue,28185,Joseph Hardy & Company Ltd,CM4 9TA,0.00
Capex Director Of Environment,Corporate Services,Play Area Refurbishments,Enhancements,FENCING - HUTTON REC,04/02/2022,REDACTED INVOICE NUMBER,155489,1092,Capital,1684,Just Fencing + Landscaping Services,SS12 OJX,0.00
Director Of Environment,Open Spaces,Recreation Areas,R&M Fix & Fit - General,BARRIERS,11/02/2022,REDACTED INVOICE NUMBER,154564,1414,Revenue,28875,K Barriers Limited,S9 1XU,0.00
Director Of Environment,Waste Management,Recycling - Dry,Purchases - General Equipment,TACHOGRAPH ANALYSIS - DEC '21,01/02/2022,REDACTED INVOICE NUMBER,154224,6.25,Revenue,25904,Keep Legal Consultancy Ltd,RM15 4YD,0.00
Director Of Environment,"Communities, Health & Leisure",Sports & Social Venues,Purchases - General Equipment,POOL SAMPLING - AUG '21,08/02/2022,REDACTED INVOICE NUMBER,149073,78.97,Revenue,28394,Kingfisher Environmental Service Ltd T/A Wcs,SW1X 7HN,0.00
Director Housing & Enforcement,Community Safety,Corporate Enforcement,Vehicle Contract Hire,HIRE CHARGES - JAN / FEB '22,25/02/2022,REDACTED INVOICE NUMBER,155322,382.41,Revenue,28539,Kinto Uk,PO6 3EN,0.00
Director Housing & Enforcement,Homelessness,B&B Accommodation,B & B Charges (Homelessness),HOMELESSNESS PREVENTION,01/02/2022,REDACTED INVOICE NUMBER,155132,280,Revenue,24333,Lampwick Care,SS1 2AS,0.00
Hra Expenditure,Supervision And Management,Managing Tenancies,Decant Costs,HOMELESSNESS PREVENTION,01/02/2022,REDACTED INVOICE NUMBER,152859,70.00,Revenue,24333,Lampwick Care,SS1 2AS,0.00
Director Housing & Enforcement,Homelessness,B&B Accommodation,B & B Charges (Homelessness),HOMELESSNESS PREVENTION,08/02/2022,REDACTED INVOICE NUMBER,155373,280,Revenue,24333,Lampwick Care,SS1 2AS,0.00
Director Housing & Enforcement,Homelessness,B&B Accommodation,B & B Charges (Homelessness),HOMELESSNESS PREVENTION,08/02/2022,REDACTED INVOICE NUMBER,155374,40,Revenue,24333,Lampwick Care,SS1 2AS,0.00
Director Housing & Enforcement,Homelessness,B&B Accommodation,B & B Charges (Homelessness),HOMELESSNESS PREVENTION,15/02/2022,REDACTED INVOICE NUMBER,155652,280,Revenue,24333,Lampwick Care,SS1 2AS,0.00
Director Housing & Enforcement,Homelessness,B&B Accommodation,B & B Charges (Homelessness),HOMELESSNESS PREVENTION,25/02/2022,REDACTED INVOICE NUMBER,155880,280,Revenue,24333,Lampwick Care,SS1 2AS,0.00
Director Of Environment,Grounds Maintenance,Grounds Maintenance,Protective Clothing,POLE SAW / CULTIVATOR,25/02/2022,REDACTED INVOICE NUMBER,155137,346,Revenue,1780,Landscape Supply Company,ME5 7NP,0.00
Director Of Environment,Grounds Maintenance,Grounds Maintenance,Purchases - Materials,POLE SAW / CULTIVATOR,25/02/2022,REDACTED INVOICE NUMBER,155137,85.57,Revenue,1780,Landscape Supply Company,ME5 7NP,0.00
Director Of Law & Governance,Legal Services & Data Protect,Legal Services & Data Protect,Subscriptions,ONLINE RENEWAL - 21/22,22/02/2022,REDACTED INVOICE NUMBER,152459,11300,Revenue,1823,Lexis Nexis Butterworths Customer Service,BT10 9AS,0.00
Director Housing & Enforcement,Homelessness,B&B Accommodation,Miscellaneous Expenses,SUPPLY FURNITURE,11/02/2022,REDACTED INVOICE NUMBER,155769,459,Revenue,1834,Lighthouse Furniture Project Ltd,CM13 1TE,0.00
Capex Director Of Environment,Corporate Services,Football Hub Development,Contracted Services,ARCITECT FOR FOOTBALL HUB,25/02/2022,REDACTED INVOICE NUMBER,155227,2000,Capital,28645,Lk2 Architects Ltd,LN2 2LL,0.00
Director Of Environment,Golf Course,Golf Course,Bank Charges,CHIP & PIN - JANUARY '22,18/02/2022,REDACTED INVOICE NUMBER,155758,124.44,Revenue,27902,Lloyds Bank (Pg),.,0.00
Director Of Law & Governance,Legal Services & Data Protect,Legal Services & Data Protect,Project Management Support,SHARED SERVICES - LEGAL WORK,18/02/2022,REDACTED INVOICE NUMBER,155444,932,Revenue,22463,London Borough Of Barking And Dagenham,IG11 7LU,0.00
Director Corporate Resources,Human Resources,Human Resources,Standards Investigations,Disciplinary Hearing Prep,11/02/2022,REDACTED INVOICE NUMBER,155628,390,Revenue,1871,London Borough Of Havering,RM1 3BB,0.00
Director Of Environment,Dog Control,Dog Control,Kennel & Vet Fees,KENNEL COSTS,11/02/2022,REDACTED INVOICE NUMBER,155515,960,Revenue,1913,M.A. Robinson,CM15 0LH,0.00
Director Of Environment,Dog Control,Dog Control,Kennel & Vet Fees,KENNEL COSTS,11/02/2022,REDACTED INVOICE NUMBER,155514,420,Revenue,1913,M.A. Robinson,CM15 0LH,0.00
Hra Expenditure,Supervision And Management,Managing Tenancies,Subscriptions,Annual Fees,22/02/2022,REDACTED INVOICE NUMBER,155946,355.00,Revenue,1917,M3 Housing Ltd,CR4 2QA,0.00
Director Of Environment,Env Pro. Noise & Pollution,Env Pro. Noise & Pollution,Subscriptions,SUPPORT SERVICE,11/02/2022,REDACTED INVOICE NUMBER,155715,990.00,Revenue,1935,Mallard Consultancy Ltd,DN10 6XB,0.00
Director Of Environment,"Communities, Health & Leisure",Community Development,Contracted Services,COMMUNITY DEVELOPMENT,18/02/2022,REDACTED INVOICE NUMBER,155989,5000,Revenue,202781P,Manna Meals,CM15 8AY,0.00
Director Corporate Resources,Council Tax & Nndr,Council Tax Collection,Baliff Fees,VAT ON FEES,15/02/2022,REDACTED INVOICE NUMBER,155426,0,Revenue,1956,Marston Group Limited,CM16 9EB,0.00
Director Corporate Resources,Asset Management,Asset Management,Other Professional Fees,HAREWOOD RD,01/02/2022,REDACTED INVOICE NUMBER,153954,2625,Revenue,1969,Mass & Co Ltd,CM14 4RG,0.00
Director Corporate Resources,Asset Management,Asset Management,Other Professional Fees,PROFESSIONAL FEES,01/02/2022,REDACTED INVOICE NUMBER,153952,950,Revenue,1969,Mass & Co Ltd,CM14 4RG,0.00
Director Corporate Resources,Asset Management,Asset Management,Other Professional Fees,PROFESSIONAL FEES,01/02/2022,REDACTED INVOICE NUMBER,153953,950,Revenue,1969,Mass & Co Ltd,CM14 4RG,0.00
Director Corporate Resources,Asset Management,Asset Management,Other Professional Fees,PROFESSIONAL FEES,01/02/2022,REDACTED INVOICE NUMBER,153956,850,Revenue,1969,Mass & Co Ltd,CM14 4RG,0.00
Director Corporate Resources,Asset Management,Asset Management,Other Professional Fees,PROFESSIONAL FEES,04/02/2022,REDACTED INVOICE NUMBER,155437,1750,Revenue,1969,Mass & Co Ltd,CM14 4RG,0.00
Hra Expenditure,Supervision And Management,Right To Buy Admin,Other Professional Fees,RIGHT TO BUY,08/02/2022,REDACTED INVOICE NUMBER,155133,250,Revenue,1969,Mass & Co Ltd,CM14 4RG,0.00
Capex Director Of Housing,Housing - Affordable Housing,Coram Green,Enhancements,WHITINGTON MEWS,18/02/2022,REDACTED INVOICE NUMBER,155747,600,Capital,1969,Mass & Co Ltd,CM14 4RG,0.00
Hra Expenditure,Supervision And Management,Managing Tenancies,Surveyors/Estate Agent Fees,MARKET VALUATION,18/02/2022,REDACTED INVOICE NUMBER,155618,400,Revenue,1969,Mass & Co Ltd,CM14 4RG,0.00
Director Of Environment,Vehicle Fleet Management,Vehicle Fleet Management,Equipment - Lease Rentals,TRACK AND TRACE - JAN '22,04/02/2022,REDACTED INVOICE NUMBER,154307,40,Revenue,1971,Masternaut (Uk) Ltd,LS25 3DF,0.00
Director Of Environment,Vehicle Fleet Management,Vehicle Fleet Management,Equipment - Lease Rentals,TRACK AND TRACE - DEC '21,08/02/2022,REDACTED INVOICE NUMBER,152963,40,Revenue,1971,Masternaut (Uk) Ltd,LS25 3DF,0.00
Director Of Law & Governance,Legal Services & Data Protect,Legal Services & Data Protect,Legal Fees,LEGAL FEES,11/02/2022,REDACTED INVOICE NUMBER,155620,850,Revenue,136003P,REDACTED PERSONAL DATA,REDACTED,0.00
Director Corporate Resources,Asset Management,Asset Management,R&M Bldgs - General,INSPECTION AND SERVICE,01/02/2022,REDACTED INVOICE NUMBER,154881,130,Revenue,2305,Monkey Tower Ltd,CM4 9NS,0.00
Capex Director Of Environment,Corporate Services,King George'S Redevelopment,Contracted Services,WALL LOGO AND LETTERS KGPF,25/02/2022,REDACTED INVOICE NUMBER,155885,"1,548.41",Capital,2313,Morgan Signs Limited,CM14 4LF,0.00
Hra Expenditure,Supervision And Management,Managing Tenancies,Decant Costs,DECANT COSTS,18/02/2022,REDACTED INVOICE NUMBER,155787,2500,Revenue,202388P,REDACTED PERSONAL DATA,REDACTED,0.00
Director Of Environment,Waste Management,Refuse Waste,Insurances - General Claims,INSURANCE,01/02/2022,REDACTED INVOICE NUMBER,155256,46.75,Revenue,201676P,REDACTED PERSONAL DATA,REDACTED,0.00
Capex Director Of Housing,Housing - Affordable Housing,Brookfield Project,Enhancements,ENHANCEMENTS,22/02/2022,REDACTED INVOICE NUMBER,156116,9150,Capital,202817P,REDACTED PERSONAL DATA,REDACTED,0.00
Director Digital & Customer En,Digital Servs & Transformation,Ict Services,Telephones - General,PHONE CHARGES,01/02/2022,REDACTED INVOICE NUMBER,154148,40,Revenue,4022,Multidata,SN6 8EY,0.00
Director Digital & Customer En,Digital Servs & Transformation,Ict Services,Telephones - General,PHONE CHARGES,01/02/2022,REDACTED INVOICE NUMBER,154149,883.16,Revenue,4022,Multidata,SN6 8EY,0.00
Capex Director Of Housing,Housing - Affordable Housing,Brookfield Project,Enhancements,ENHANCEMENTS,08/02/2022,REDACTED INVOICE NUMBER,155454,9080,Capital,202009P,REDACTED PERSONAL DATA,REDACTED,0.00
Director Of Environment,Open Spaces,Countryside Recreation Mtnce,R&M Grounds - Treework,WOODLAND MAINTENANCE,04/02/2022,REDACTED INVOICE NUMBER,155078,750,Revenue,4063,Neil Carter Arblog Ltd,CM14 5NJ,0.00
Director Of Environment,Vehicle Fleet Management,Vehicle Fleet Management,Vehicle - Tyres,CALL OUT  LABOUR,01/02/2022,REDACTED INVOICE NUMBER,154935,55,Revenue,4083,Nicks Tyre Services Ltd,CM15 9SB,0.00
Director Of Environment,Vehicle Fleet Management,Vehicle Fleet Management,Vehicle - Tyres,VEHICLE REPAIRS,01/02/2022,REDACTED INVOICE NUMBER,153088,158.92,Revenue,4083,Nicks Tyre Services Ltd,CM15 9SB,0.00
Director Of Environment,Golf Course,Golf Course,Vehicle - Tyres,SPLITTER REPAIRS,25/02/2022,REDACTED INVOICE NUMBER,155490,67.99,Revenue,4083,Nicks Tyre Services Ltd,CM15 9SB,0.00
Director Of Environment,Vehicle Fleet Management,Vehicle Fleet Management,Vehicle Replacement Parts,VEHICLE REPAIRS,25/02/2022,REDACTED INVOICE NUMBER,155780,129,Revenue,4083,Nicks Tyre Services Ltd,CM15 9SB,0.00
Director Of Environment,"Communities, Health & Leisure",Sports & Social Venues,Contracted Services,PROJECT COSTS 1 OF 3,25/02/2022,REDACTED INVOICE NUMBER,155331,3960,Revenue,28931,Optimum Pitch Ltd,NG14 7GE,0.00
Hra Expenditure,"Rents, Rates & Other Charges","Rents, Rates & Other Charges",Electricity,ELECTRICITY SUPPLY,01/02/2022,REDACTED INVOICE NUMBER,154671,118.58,Revenue,4145,Opus Energy (Corporate) Ltd,OX2 7JH,0.00
Hra Expenditure,Special Services,Communal Lighting,Electricity,ELECTRICITY SUPPLY,01/02/2022,REDACTED INVOICE NUMBER,154631,67.83,Revenue,4145,Opus Energy (Corporate) Ltd,OX2 7JH,0.00
Hra Expenditure,Special Services,Communal Lighting,Electricity,ELECTRICITY SUPPLY,01/02/2022,REDACTED INVOICE NUMBER,154636,43.28,Revenue,4145,Opus Energy (Corporate) Ltd,OX2 7JH,0.00
Hra Expenditure,Special Services,Communal Lighting,Electricity,ELECTRICITY SUPPLY,01/02/2022,REDACTED INVOICE NUMBER,154663,23.59,Revenue,4145,Opus Energy (Corporate) Ltd,OX2 7JH,0.00
Hra Expenditure,Special Services,Communal Lighting,Electricity,ELECTRICITY SUPPLY,01/02/2022,REDACTED INVOICE NUMBER,154626,69.27,Revenue,4145,Opus Energy (Corporate) Ltd,OX2 7JH,0.00
Hra Expenditure,Special Services,Communal Lighting,Electricity,ELECTRICITY SUPPLY,01/02/2022,REDACTED INVOICE NUMBER,154664,125.84,Revenue,4145,Opus Energy (Corporate) Ltd,OX2 7JH,0.00
Hra Expenditure,Special Services,Communal Lighting,Electricity,ELECTRICITY SUPPLY,01/02/2022,REDACTED INVOICE NUMBER,154603,41.69,Revenue,4145,Opus Energy (Corporate) Ltd,OX2 7JH,0.00
Hra Expenditure,Special Services,Communal Lighting,Electricity,ELECTRICITY SUPPLY,01/02/2022,REDACTED INVOICE NUMBER,154634,20.71,Revenue,4145,Opus Energy (Corporate) Ltd,OX2 7JH,0.00
Hra Expenditure,Special Services,Communal Lighting,Electricity,ELECTRICITY SUPPLY,01/02/2022,REDACTED INVOICE NUMBER,154711,65.19,Revenue,4145,Opus Energy (Corporate) Ltd,OX2 7JH,0.00
Hra Expenditure,Special Services,Communal Lighting,Electricity,ELECTRICITY SUPPLY,01/02/2022,REDACTED INVOICE NUMBER,154622,44.33,Revenue,4145,Opus Energy (Corporate) Ltd,OX2 7JH,0.00
Hra Expenditure,Special Services,Communal Lighting,Electricity,ELECTRICITY SUPPLY,01/02/2022,REDACTED INVOICE NUMBER,154647,20.09,Revenue,4145,Opus Energy (Corporate) Ltd,OX2 7JH,0.00
Hra Expenditure,Special Services,Communal Lighting,Electricity,ELECTRICITY SUPPLY,01/02/2022,REDACTED INVOICE NUMBER,154618,38.98,Revenue,4145,Opus Energy (Corporate) Ltd,OX2 7JH,0.00
Hra Expenditure,Special Services,Communal Lighting,Electricity,ELECTRICITY SUPPLY,01/02/2022,REDACTED INVOICE NUMBER,154607,9.05,Revenue,4145,Opus Energy (Corporate) Ltd,OX2 7JH,0.00
Hra Expenditure,Special Services,Communal Lighting,Electricity,ELECTRICITY SUPPLY,01/02/2022,REDACTED INVOICE NUMBER,154673,18.31,Revenue,4145,Opus Energy (Corporate) Ltd,OX2 7JH,0.00
Hra Expenditure,Special Services,Communal Lighting,Electricity,ELECTRICITY SUPPLY,01/02/2022,REDACTED INVOICE NUMBER,154741,9.01,Revenue,4145,Opus Energy (Corporate) Ltd,OX2 7JH,0.00
Hra Expenditure,Special Services,Communal Lighting,Electricity,ELECTRICITY SUPPLY,01/02/2022,REDACTED INVOICE NUMBER,154627,108.41,Revenue,4145,Opus Energy (Corporate) Ltd,OX2 7JH,0.00
Hra Expenditure,Special Services,Communal Lighting,Electricity,ELECTRICITY SUPPLY,01/02/2022,REDACTED INVOICE NUMBER,154666,28.68,Revenue,4145,Opus Energy (Corporate) Ltd,OX2 7JH,0.00
Hra Expenditure,Special Services,Communal Lighting,Electricity,ELECTRICITY SUPPLY,01/02/2022,REDACTED INVOICE NUMBER,154690,829.8,Revenue,4145,Opus Energy (Corporate) Ltd,OX2 7JH,0.00
Hra Expenditure,Special Services,Communal Lighting,Electricity,ELECTRICITY SUPPLY,01/02/2022,REDACTED INVOICE NUMBER,154665,23.9,Revenue,4145,Opus Energy (Corporate) Ltd,OX2 7JH,0.00
Hra Expenditure,Special Services,Communal Lighting,Electricity,ELECTRICITY SUPPLY,01/02/2022,REDACTED INVOICE NUMBER,154742,19.56,Revenue,4145,Opus Energy (Corporate) Ltd,OX2 7JH,0.00
Hra Expenditure,Special Services,Communal Lighting,Electricity,ELECTRICITY SUPPLY,01/02/2022,REDACTED INVOICE NUMBER,154637,49.17,Revenue,4145,Opus Energy (Corporate) Ltd,OX2 7JH,0.00
Hra Expenditure,Special Services,Communal Lighting,Electricity,ELECTRICITY SUPPLY,01/02/2022,REDACTED INVOICE NUMBER,154638,24.87,Revenue,4145,Opus Energy (Corporate) Ltd,OX2 7JH,0.00
Hra Expenditure,Special Services,Communal Lighting,Electricity,ELECTRICITY SUPPLY,01/02/2022,REDACTED INVOICE NUMBER,154624,25.8,Revenue,4145,Opus Energy (Corporate) Ltd,OX2 7JH,0.00
Hra Expenditure,Special Services,Communal Lighting,Electricity,ELECTRICITY SUPPLY,01/02/2022,REDACTED INVOICE NUMBER,154625,56.45,Revenue,4145,Opus Energy (Corporate) Ltd,OX2 7JH,0.00
Hra Expenditure,Special Services,Communal Lighting,Electricity,ELECTRICITY SUPPLY,01/02/2022,REDACTED INVOICE NUMBER,154602,82.5,Revenue,4145,Opus Energy (Corporate) Ltd,OX2 7JH,0.00
Hra Expenditure,Special Services,Communal Lighting,Electricity,ELECTRICITY SUPPLY,01/02/2022,REDACTED INVOICE NUMBER,154659,53.88,Revenue,4145,Opus Energy (Corporate) Ltd,OX2 7JH,0.00
Hra Expenditure,Special Services,Communal Lighting,Electricity,ELECTRICITY SUPPLY,01/02/2022,REDACTED INVOICE NUMBER,154604,38.79,Revenue,4145,Opus Energy (Corporate) Ltd,OX2 7JH,0.00
Hra Expenditure,Special Services,Communal Lighting,Electricity,ELECTRICITY SUPPLY,01/02/2022,REDACTED INVOICE NUMBER,154615,28.18,Revenue,4145,Opus Energy (Corporate) Ltd,OX2 7JH,0.00
Hra Expenditure,Special Services,Communal Lighting,Electricity,ELECTRICITY SUPPLY,01/02/2022,REDACTED INVOICE NUMBER,154605,59.76,Revenue,4145,Opus Energy (Corporate) Ltd,OX2 7JH,0.00
Hra Expenditure,Special Services,Communal Lighting,Electricity,ELECTRICITY SUPPLY,01/02/2022,REDACTED INVOICE NUMBER,154606,65.15,Revenue,4145,Opus Energy (Corporate) Ltd,OX2 7JH,0.00
Hra Expenditure,Special Services,Communal Lighting,Electricity,ELECTRICITY SUPPLY,01/02/2022,REDACTED INVOICE NUMBER,154612,34.13,Revenue,4145,Opus Energy (Corporate) Ltd,OX2 7JH,0.00
Hra Expenditure,Special Services,Communal Lighting,Electricity,ELECTRICITY SUPPLY,01/02/2022,REDACTED INVOICE NUMBER,154648,38.59,Revenue,4145,Opus Energy (Corporate) Ltd,OX2 7JH,0.00
Hra Expenditure,Special Services,Communal Lighting,Electricity,ELECTRICITY SUPPLY,01/02/2022,REDACTED INVOICE NUMBER,154613,74.44,Revenue,4145,Opus Energy (Corporate) Ltd,OX2 7JH,0.00
Hra Expenditure,Special Services,Communal Lighting,Electricity,ELECTRICITY SUPPLY,01/02/2022,REDACTED INVOICE NUMBER,154632,52.37,Revenue,4145,Opus Energy (Corporate) Ltd,OX2 7JH,0.00
Hra Expenditure,Special Services,Communal Lighting,Electricity,ELECTRICITY SUPPLY,01/02/2022,REDACTED INVOICE NUMBER,154660,56.98,Revenue,4145,Opus Energy (Corporate) Ltd,OX2 7JH,0.00
Hra Expenditure,Special Services,Communal Lighting,Electricity,ELECTRICITY SUPPLY,01/02/2022,REDACTED INVOICE NUMBER,154833,-16.39,Revenue,4145,Opus Energy (Corporate) Ltd,OX2 7JH,0.00
Hra Expenditure,Special Services,Communal Lighting,Electricity,ELECTRICITY SUPPLY,01/02/2022,REDACTED INVOICE NUMBER,154820,-16.68,Revenue,4145,Opus Energy (Corporate) Ltd,OX2 7JH,0.00
Hra Expenditure,Special Services,Communal Lighting,Electricity,ELECTRICITY SUPPLY,01/02/2022,REDACTED INVOICE NUMBER,154829,-14.36,Revenue,4145,Opus Energy (Corporate) Ltd,OX2 7JH,0.00
Hra Expenditure,Special Services,Communal Lighting,Electricity,ELECTRICITY SUPPLY,01/02/2022,REDACTED INVOICE NUMBER,154835,-20.08,Revenue,4145,Opus Energy (Corporate) Ltd,OX2 7JH,0.00
Hra Expenditure,Special Services,Communal Lighting,Electricity,ELECTRICITY SUPPLY,01/02/2022,REDACTED INVOICE NUMBER,154619,450.73,Revenue,4145,Opus Energy (Corporate) Ltd,OX2 7JH,0.00
Hra Expenditure,Special Services,Communal Lighting,Electricity,ELECTRICITY SUPPLY,01/02/2022,REDACTED INVOICE NUMBER,154822,-17.46,Revenue,4145,Opus Energy (Corporate) Ltd,OX2 7JH,0.00
Hra Expenditure,Special Services,Communal Lighting,Electricity,ELECTRICITY SUPPLY,01/02/2022,REDACTED INVOICE NUMBER,154825,-19.81,Revenue,4145,Opus Energy (Corporate) Ltd,OX2 7JH,0.00
Hra Expenditure,Special Services,Communal Lighting,Electricity,ELECTRICITY SUPPLY,01/02/2022,REDACTED INVOICE NUMBER,154823,-20.18,Revenue,4145,Opus Energy (Corporate) Ltd,OX2 7JH,0.00
Hra Expenditure,Special Services,Communal Lighting,Electricity,ELECTRICITY SUPPLY,01/02/2022,REDACTED INVOICE NUMBER,154830,-14.62,Revenue,4145,Opus Energy (Corporate) Ltd,OX2 7JH,0.00
Hra Expenditure,Special Services,Communal Lighting,Electricity,ELECTRICITY SUPPLY,01/02/2022,REDACTED INVOICE NUMBER,154817,-13.97,Revenue,4145,Opus Energy (Corporate) Ltd,OX2 7JH,0.00
Hra Expenditure,Special Services,Communal Lighting,Electricity,ELECTRICITY SUPPLY,01/02/2022,REDACTED INVOICE NUMBER,154831,-14.05,Revenue,4145,Opus Energy (Corporate) Ltd,OX2 7JH,0.00
Hra Expenditure,Special Services,Communal Lighting,Electricity,ELECTRICITY SUPPLY,01/02/2022,REDACTED INVOICE NUMBER,154818,-13.74,Revenue,4145,Opus Energy (Corporate) Ltd,OX2 7JH,0.00
Hra Expenditure,Special Services,Communal Lighting,Electricity,ELECTRICITY SUPPLY,01/02/2022,REDACTED INVOICE NUMBER,154834,-18.78,Revenue,4145,Opus Energy (Corporate) Ltd,OX2 7JH,0.00
Hra Expenditure,Special Services,Communal Lighting,Electricity,ELECTRICITY SUPPLY,01/02/2022,REDACTED INVOICE NUMBER,154819,-15.5,Revenue,4145,Opus Energy (Corporate) Ltd,OX2 7JH,0.00
Hra Expenditure,Special Services,Communal Lighting,Electricity,ELECTRICITY SUPPLY,01/02/2022,REDACTED INVOICE NUMBER,154821,-18.57,Revenue,4145,Opus Energy (Corporate) Ltd,OX2 7JH,0.00
Hra Expenditure,Special Services,Communal Lighting,Electricity,ELECTRICITY SUPPLY,01/02/2022,REDACTED INVOICE NUMBER,154832,-15.52,Revenue,4145,Opus Energy (Corporate) Ltd,OX2 7JH,0.00
Hra Expenditure,Special Services,Communal Lighting,Electricity,ELECTRICITY SUPPLY,01/02/2022,REDACTED INVOICE NUMBER,154836,-19.24,Revenue,4145,Opus Energy (Corporate) Ltd,OX2 7JH,0.00
Hra Expenditure,Special Services,Communal Lighting,Electricity,ELECTRICITY SUPPLY,01/02/2022,REDACTED INVOICE NUMBER,154813,-27.01,Revenue,4145,Opus Energy (Corporate) Ltd,OX2 7JH,0.00
Hra Expenditure,Special Services,Communal Lighting,Electricity,ELECTRICITY SUPPLY,01/02/2022,REDACTED INVOICE NUMBER,154826,-17.74,Revenue,4145,Opus Energy (Corporate) Ltd,OX2 7JH,0.00
Hra Expenditure,Special Services,Communal Lighting,Electricity,ELECTRICITY SUPPLY,01/02/2022,REDACTED INVOICE NUMBER,154837,-17.24,Revenue,4145,Opus Energy (Corporate) Ltd,OX2 7JH,0.00
Hra Expenditure,Special Services,Communal Lighting,Electricity,ELECTRICITY SUPPLY,01/02/2022,REDACTED INVOICE NUMBER,154827,-16.88,Revenue,4145,Opus Energy (Corporate) Ltd,OX2 7JH,0.00
Hra Expenditure,Special Services,Communal Lighting,Electricity,ELECTRICITY SUPPLY,01/02/2022,REDACTED INVOICE NUMBER,154814,-24.62,Revenue,4145,Opus Energy (Corporate) Ltd,OX2 7JH,0.00
Hra Expenditure,Special Services,Communal Lighting,Electricity,ELECTRICITY SUPPLY,01/02/2022,REDACTED INVOICE NUMBER,154828,-14.92,Revenue,4145,Opus Energy (Corporate) Ltd,OX2 7JH,0.00
Hra Expenditure,Special Services,Communal Lighting,Electricity,ELECTRICITY SUPPLY,01/02/2022,REDACTED INVOICE NUMBER,154815,-14.25,Revenue,4145,Opus Energy (Corporate) Ltd,OX2 7JH,0.00
Hra Expenditure,Special Services,Communal Lighting,Electricity,ELECTRICITY SUPPLY,01/02/2022,REDACTED INVOICE NUMBER,154816,-14.13,Revenue,4145,Opus Energy (Corporate) Ltd,OX2 7JH,0.00
Hra Expenditure,Special Services,Communal Lighting,Electricity,ELECTRICITY SUPPLY,01/02/2022,REDACTED INVOICE NUMBER,154839,-19.47,Revenue,4145,Opus Energy (Corporate) Ltd,OX2 7JH,0.00
Hra Expenditure,Special Services,Communal Lighting,Electricity,ELECTRICITY SUPPLY,01/02/2022,REDACTED INVOICE NUMBER,154824,-18.3,Revenue,4145,Opus Energy (Corporate) Ltd,OX2 7JH,0.00
Hra Expenditure,Special Services,Communal Lighting,Electricity,ELECTRICITY SUPPLY,01/02/2022,REDACTED INVOICE NUMBER,154614,25.99,Revenue,4145,Opus Energy (Corporate) Ltd,OX2 7JH,0.00
Hra Expenditure,Special Services,Communal Lighting,Electricity,ELECTRICITY SUPPLY,01/02/2022,REDACTED INVOICE NUMBER,154667,39.2,Revenue,4145,Opus Energy (Corporate) Ltd,OX2 7JH,0.00
Hra Expenditure,Special Services,Communal Lighting,Electricity,ELECTRICITY SUPPLY,01/02/2022,REDACTED INVOICE NUMBER,154635,21.26,Revenue,4145,Opus Energy (Corporate) Ltd,OX2 7JH,0.00
Hra Expenditure,Special Services,Communal Lighting,Electricity,ELECTRICITY SUPPLY,01/02/2022,REDACTED INVOICE NUMBER,154661,38.34,Revenue,4145,Opus Energy (Corporate) Ltd,OX2 7JH,0.00
Hra Expenditure,Special Services,Communal Lighting,Electricity,ELECTRICITY SUPPLY,01/02/2022,REDACTED INVOICE NUMBER,154616,64.04,Revenue,4145,Opus Energy (Corporate) Ltd,OX2 7JH,0.00
Hra Expenditure,Special Services,Communal Lighting,Electricity,ELECTRICITY SUPPLY,01/02/2022,REDACTED INVOICE NUMBER,154668,26.14,Revenue,4145,Opus Energy (Corporate) Ltd,OX2 7JH,0.00
Hra Expenditure,Special Services,Communal Lighting,Electricity,ELECTRICITY SUPPLY,01/02/2022,REDACTED INVOICE NUMBER,154608,9.91,Revenue,4145,Opus Energy (Corporate) Ltd,OX2 7JH,0.00
Hra Expenditure,Special Services,Communal Lighting,Electricity,ELECTRICITY SUPPLY,01/02/2022,REDACTED INVOICE NUMBER,154669,22.14,Revenue,4145,Opus Energy (Corporate) Ltd,OX2 7JH,0.00
Hra Expenditure,Special Services,Communal Lighting,Electricity,ELECTRICITY SUPPLY,01/02/2022,REDACTED INVOICE NUMBER,154609,85.14,Revenue,4145,Opus Energy (Corporate) Ltd,OX2 7JH,0.00
Hra Expenditure,Special Services,Communal Lighting,Electricity,ELECTRICITY SUPPLY,01/02/2022,REDACTED INVOICE NUMBER,154679,30.87,Revenue,4145,Opus Energy (Corporate) Ltd,OX2 7JH,0.00
Hra Expenditure,Special Services,Communal Lighting,Electricity,ELECTRICITY SUPPLY,01/02/2022,REDACTED INVOICE NUMBER,154617,56.11,Revenue,4145,Opus Energy (Corporate) Ltd,OX2 7JH,0.00
Hra Expenditure,Special Services,Communal Lighting,Electricity,ELECTRICITY SUPPLY,01/02/2022,REDACTED INVOICE NUMBER,154686,1037.03,Revenue,4145,Opus Energy (Corporate) Ltd,OX2 7JH,0.00
Hra Expenditure,Special Services,Communal Lighting,Electricity,ELECTRICITY SUPPLY,01/02/2022,REDACTED INVOICE NUMBER,154687,14.48,Revenue,4145,Opus Energy (Corporate) Ltd,OX2 7JH,0.00
Hra Expenditure,Special Services,Communal Lighting,Electricity,ELECTRICITY SUPPLY,01/02/2022,REDACTED INVOICE NUMBER,154620,214.63,Revenue,4145,Opus Energy (Corporate) Ltd,OX2 7JH,0.00
Hra Expenditure,Special Services,Communal Lighting,Electricity,ELECTRICITY SUPPLY,01/02/2022,REDACTED INVOICE NUMBER,154623,223.4,Revenue,4145,Opus Energy (Corporate) Ltd,OX2 7JH,0.00
Hra Expenditure,Special Services,Communal Lighting,Electricity,ELECTRICITY SUPPLY,01/02/2022,REDACTED INVOICE NUMBER,154689,122.89,Revenue,4145,Opus Energy (Corporate) Ltd,OX2 7JH,0.00
Hra Expenditure,Special Services,Communal Lighting,Electricity,ELECTRICITY SUPPLY,01/02/2022,REDACTED INVOICE NUMBER,154706,9.05,Revenue,4145,Opus Energy (Corporate) Ltd,OX2 7JH,0.00
Hra Expenditure,Special Services,Communal Lighting,Electricity,ELECTRICITY SUPPLY,01/02/2022,REDACTED INVOICE NUMBER,154685,45.68,Revenue,4145,Opus Energy (Corporate) Ltd,OX2 7JH,0.00
Hra Expenditure,Special Services,Communal Lighting,Electricity,ELECTRICITY SUPPLY,01/02/2022,REDACTED INVOICE NUMBER,154714,9.05,Revenue,4145,Opus Energy (Corporate) Ltd,OX2 7JH,0.00
Hra Expenditure,Special Services,Communal Lighting,Electricity,ELECTRICITY SUPPLY,01/02/2022,REDACTED INVOICE NUMBER,154641,19.28,Revenue,4145,Opus Energy (Corporate) Ltd,OX2 7JH,0.00
Hra Expenditure,Special Services,Communal Lighting,Electricity,ELECTRICITY SUPPLY,01/02/2022,REDACTED INVOICE NUMBER,154628,17.29,Revenue,4145,Opus Energy (Corporate) Ltd,OX2 7JH,0.00
Hra Expenditure,Special Services,Communal Lighting,Electricity,ELECTRICITY SUPPLY,01/02/2022,REDACTED INVOICE NUMBER,154629,95.79,Revenue,4145,Opus Energy (Corporate) Ltd,OX2 7JH,0.00
Hra Expenditure,Special Services,Communal Lighting,Electricity,ELECTRICITY SUPPLY,01/02/2022,REDACTED INVOICE NUMBER,154700,34.75,Revenue,4145,Opus Energy (Corporate) Ltd,OX2 7JH,0.00
Hra Expenditure,Special Services,Communal Lighting,Electricity,ELECTRICITY SUPPLY,01/02/2022,REDACTED INVOICE NUMBER,154701,1307.57,Revenue,4145,Opus Energy (Corporate) Ltd,OX2 7JH,0.00
Hra Expenditure,Special Services,Communal Lighting,Electricity,ELECTRICITY SUPPLY,01/02/2022,REDACTED INVOICE NUMBER,154702,349.53,Revenue,4145,Opus Energy (Corporate) Ltd,OX2 7JH,0.00
Hra Expenditure,Special Services,Communal Lighting,Electricity,ELECTRICITY SUPPLY,01/02/2022,REDACTED INVOICE NUMBER,154703,688.2,Revenue,4145,Opus Energy (Corporate) Ltd,OX2 7JH,0.00
Hra Expenditure,Special Services,Communal Lighting,Electricity,ELECTRICITY SUPPLY,01/02/2022,REDACTED INVOICE NUMBER,154633,13.63,Revenue,4145,Opus Energy (Corporate) Ltd,OX2 7JH,0.00
Hra Expenditure,Special Services,Communal Lighting,Electricity,ELECTRICITY SUPPLY,01/02/2022,REDACTED INVOICE NUMBER,154704,51.96,Revenue,4145,Opus Energy (Corporate) Ltd,OX2 7JH,0.00
Hra Expenditure,Special Services,Communal Lighting,Electricity,ELECTRICITY SUPPLY,01/02/2022,REDACTED INVOICE NUMBER,154705,9.05,Revenue,4145,Opus Energy (Corporate) Ltd,OX2 7JH,0.00
Hra Expenditure,Special Services,Communal Lighting,Electricity,ELECTRICITY SUPPLY,01/02/2022,REDACTED INVOICE NUMBER,154712,135.86,Revenue,4145,Opus Energy (Corporate) Ltd,OX2 7JH,0.00
Hra Expenditure,Special Services,Communal Lighting,Electricity,ELECTRICITY SUPPLY,01/02/2022,REDACTED INVOICE NUMBER,154713,171.71,Revenue,4145,Opus Energy (Corporate) Ltd,OX2 7JH,0.00
Hra Expenditure,Special Services,Communal Lighting,Electricity,ELECTRICITY SUPPLY,01/02/2022,REDACTED INVOICE NUMBER,154642,76.48,Revenue,4145,Opus Energy (Corporate) Ltd,OX2 7JH,0.00
Hra Expenditure,Special Services,Communal Lighting,Electricity,ELECTRICITY SUPPLY,01/02/2022,REDACTED INVOICE NUMBER,154643,56.68,Revenue,4145,Opus Energy (Corporate) Ltd,OX2 7JH,0.00
Hra Expenditure,Special Services,Communal Lighting,Electricity,ELECTRICITY SUPPLY,01/02/2022,REDACTED INVOICE NUMBER,154645,81.60,Revenue,4145,Opus Energy (Corporate) Ltd,OX2 7JH,0.00
Hra Expenditure,Special Services,Communal Lighting,Electricity,ELECTRICITY SUPPLY,01/02/2022,REDACTED INVOICE NUMBER,154646,41.72,Revenue,4145,Opus Energy (Corporate) Ltd,OX2 7JH,0.00
Hra Expenditure,Special Services,Communal Lighting,Electricity,ELECTRICITY SUPPLY,01/02/2022,REDACTED INVOICE NUMBER,154649,241.79,Revenue,4145,Opus Energy (Corporate) Ltd,OX2 7JH,0.00
Hra Expenditure,Special Services,Communal Lighting,Electricity,ELECTRICITY SUPPLY,01/02/2022,REDACTED INVOICE NUMBER,154650,47.34,Revenue,4145,Opus Energy (Corporate) Ltd,OX2 7JH,0.00
Hra Expenditure,Special Services,Communal Lighting,Electricity,ELECTRICITY SUPPLY,01/02/2022,REDACTED INVOICE NUMBER,154651,37.27,Revenue,4145,Opus Energy (Corporate) Ltd,OX2 7JH,0.00
Hra Expenditure,Special Services,Communal Lighting,Electricity,ELECTRICITY SUPPLY,01/02/2022,REDACTED INVOICE NUMBER,154652,66.30,Revenue,4145,Opus Energy (Corporate) Ltd,OX2 7JH,0.00
Hra Expenditure,Special Services,Communal Lighting,Electricity,ELECTRICITY SUPPLY,01/02/2022,REDACTED INVOICE NUMBER,154653,93.09,Revenue,4145,Opus Energy (Corporate) Ltd,OX2 7JH,0.00
Hra Expenditure,Special Services,Communal Lighting,Electricity,ELECTRICITY SUPPLY,01/02/2022,REDACTED INVOICE NUMBER,154654,33.47,Revenue,4145,Opus Energy (Corporate) Ltd,OX2 7JH,0.00
Hra Expenditure,Special Services,Communal Lighting,Electricity,ELECTRICITY SUPPLY,01/02/2022,REDACTED INVOICE NUMBER,154655,21.52,Revenue,4145,Opus Energy (Corporate) Ltd,OX2 7JH,0.00
Hra Expenditure,Special Services,Communal Lighting,Electricity,ELECTRICITY SUPPLY,01/02/2022,REDACTED INVOICE NUMBER,154656,42.36,Revenue,4145,Opus Energy (Corporate) Ltd,OX2 7JH,0.00
Hra Expenditure,Special Services,Communal Lighting,Electricity,ELECTRICITY SUPPLY,01/02/2022,REDACTED INVOICE NUMBER,154657,28.38,Revenue,4145,Opus Energy (Corporate) Ltd,OX2 7JH,0.00
Hra Expenditure,Special Services,Communal Lighting,Electricity,ELECTRICITY SUPPLY,01/02/2022,REDACTED INVOICE NUMBER,154658,114.81,Revenue,4145,Opus Energy (Corporate) Ltd,OX2 7JH,0.00
Hra Expenditure,Special Services,Communal Lighting,Electricity,ELECTRICITY SUPPLY,01/02/2022,REDACTED INVOICE NUMBER,154734,100.67,Revenue,4145,Opus Energy (Corporate) Ltd,OX2 7JH,0.00
Hra Expenditure,Special Services,Communal Lighting,Electricity,ELECTRICITY SUPPLY,01/02/2022,REDACTED INVOICE NUMBER,154696,192.71,Revenue,4145,Opus Energy (Corporate) Ltd,OX2 7JH,0.00
Hra Expenditure,Special Services,Communal Lighting,Electricity,ELECTRICITY SUPPLY,01/02/2022,REDACTED INVOICE NUMBER,154662,75.83,Revenue,4145,Opus Energy (Corporate) Ltd,OX2 7JH,0.00
Hra Expenditure,Special Services,Communal Lighting,Electricity,ELECTRICITY SUPPLY,01/02/2022,REDACTED INVOICE NUMBER,154721,60.99,Revenue,4145,Opus Energy (Corporate) Ltd,OX2 7JH,0.00
Hra Expenditure,Special Services,Communal Lighting,Electricity,ELECTRICITY SUPPLY,01/02/2022,REDACTED INVOICE NUMBER,154670,43.62,Revenue,4145,Opus Energy (Corporate) Ltd,OX2 7JH,0.00
Hra Expenditure,Special Services,Other Special Services,Electricity,ELECTRICITY SUPPLY,01/02/2022,REDACTED INVOICE NUMBER,154681,120.67,Revenue,4145,Opus Energy (Corporate) Ltd,OX2 7JH,0.00
Hra Expenditure,Special Services,Other Special Services,Electricity,ELECTRICITY SUPPLY,01/02/2022,REDACTED INVOICE NUMBER,154716,46.61,Revenue,4145,Opus Energy (Corporate) Ltd,OX2 7JH,0.00
Hra Expenditure,Special Services,Communal Lighting,Electricity,ELECTRICITY SUPPLY,11/02/2022,REDACTED INVOICE NUMBER,154610,21.19,Revenue,4145,Opus Energy (Corporate) Ltd,OX2 7JH,0.00
Hra Expenditure,Special Services,Communal Lighting,Electricity,ELECTRICITY SUPPLY,11/02/2022,REDACTED INVOICE NUMBER,154621,11.43,Revenue,4145,Opus Energy (Corporate) Ltd,OX2 7JH,0.00
Hra Expenditure,Special Services,Communal Lighting,Electricity,ELECTRICITY SUPPLY,11/02/2022,REDACTED INVOICE NUMBER,154630,33.77,Revenue,4145,Opus Energy (Corporate) Ltd,OX2 7JH,0.00
Hra Expenditure,Special Services,Communal Lighting,Electricity,ELECTRICITY SUPPLY,11/02/2022,REDACTED INVOICE NUMBER,154611,43.97,Revenue,4145,Opus Energy (Corporate) Ltd,OX2 7JH,0.00
Hra Expenditure,Special Services,Communal Lighting,Electricity,ELECTRICITY SUPPLY,11/02/2022,REDACTED INVOICE NUMBER,154639,34.74,Revenue,4145,Opus Energy (Corporate) Ltd,OX2 7JH,0.00
Hra Expenditure,Special Services,Communal Lighting,Electricity,ELECTRICITY SUPPLY,11/02/2022,REDACTED INVOICE NUMBER,154640,74.06,Revenue,4145,Opus Energy (Corporate) Ltd,OX2 7JH,0.00
Hra Expenditure,Special Services,Communal Lighting,Electricity,ELECTRICITY SUPPLY,11/02/2022,REDACTED INVOICE NUMBER,154644,16.4,Revenue,4145,Opus Energy (Corporate) Ltd,OX2 7JH,0.00
Hra Expenditure,Special Services,Communal Lighting,Electricity,ELECTRICITY SUPPLY,11/02/2022,REDACTED INVOICE NUMBER,154688,17.00,Revenue,4145,Opus Energy (Corporate) Ltd,OX2 7JH,0.00
Hra Expenditure,Special Services,Communal Lighting,Electricity,ELECTRICITY SUPPLY,11/02/2022,REDACTED INVOICE NUMBER,154675,9.05,Revenue,4145,Opus Energy (Corporate) Ltd,OX2 7JH,0.00
Hra Expenditure,Special Services,Communal Lighting,Electricity,ELECTRICITY SUPPLY,11/02/2022,REDACTED INVOICE NUMBER,154680,1067.98,Revenue,4145,Opus Energy (Corporate) Ltd,OX2 7JH,0.00
Hra Expenditure,Special Services,Communal Lighting,Electricity,ELECTRICITY SUPPLY,11/02/2022,REDACTED INVOICE NUMBER,154683,15.94,Revenue,4145,Opus Energy (Corporate) Ltd,OX2 7JH,0.00
Hra Expenditure,Special Services,Communal Lighting,Electricity,ELECTRICITY SUPPLY,11/02/2022,REDACTED INVOICE NUMBER,154684,23.68,Revenue,4145,Opus Energy (Corporate) Ltd,OX2 7JH,0.00
Hra Expenditure,Special Services,Communal Lighting,Electricity,ELECTRICITY SUPPLY,11/02/2022,REDACTED INVOICE NUMBER,154693,232.71,Revenue,4145,Opus Energy (Corporate) Ltd,OX2 7JH,0.00
Hra Expenditure,Special Services,Communal Lighting,Electricity,ELECTRICITY SUPPLY,11/02/2022,REDACTED INVOICE NUMBER,154694,41.57,Revenue,4145,Opus Energy (Corporate) Ltd,OX2 7JH,0.00
Hra Expenditure,Special Services,Communal Lighting,Electricity,ELECTRICITY SUPPLY,11/02/2022,REDACTED INVOICE NUMBER,154698,102.75,Revenue,4145,Opus Energy (Corporate) Ltd,OX2 7JH,0.00
Hra Expenditure,Special Services,Communal Lighting,Electricity,ELECTRICITY SUPPLY,11/02/2022,REDACTED INVOICE NUMBER,154699,4191.94,Revenue,4145,Opus Energy (Corporate) Ltd,OX2 7JH,0.00
Hra Expenditure,Special Services,Communal Lighting,Electricity,ELECTRICITY SUPPLY,11/02/2022,REDACTED INVOICE NUMBER,154710,41.04,Revenue,4145,Opus Energy (Corporate) Ltd,OX2 7JH,0.00
Hra Expenditure,Special Services,Communal Lighting,Electricity,ELECTRICITY SUPPLY,11/02/2022,REDACTED INVOICE NUMBER,154674,11.17,Revenue,4145,Opus Energy (Corporate) Ltd,OX2 7JH,0.00
Hra Expenditure,Special Services,Communal Lighting,Electricity,ELECTRICITY SUPPLY,11/02/2022,REDACTED INVOICE NUMBER,154715,116.97,Revenue,4145,Opus Energy (Corporate) Ltd,OX2 7JH,0.00
Hra Expenditure,Special Services,Communal Lighting,Electricity,ELECTRICITY SUPPLY,11/02/2022,REDACTED INVOICE NUMBER,154717,644.8,Revenue,4145,Opus Energy (Corporate) Ltd,OX2 7JH,0.00
Hra Expenditure,Special Services,Communal Lighting,Electricity,ELECTRICITY SUPPLY,11/02/2022,REDACTED INVOICE NUMBER,154718,387,Revenue,4145,Opus Energy (Corporate) Ltd,OX2 7JH,0.00
Hra Expenditure,Special Services,Communal Lighting,Electricity,ELECTRICITY SUPPLY,11/02/2022,REDACTED INVOICE NUMBER,154720,328.49,Revenue,4145,Opus Energy (Corporate) Ltd,OX2 7JH,0.00
Hra Expenditure,Special Services,Sheltered Welfare Services,Electricity,ELECTRICITY SUPPLY,11/02/2022,REDACTED INVOICE NUMBER,154730,15.83,Revenue,4145,Opus Energy (Corporate) Ltd,OX2 7JH,0.00
Hra Expenditure,Special Services,Sheltered Welfare Services,Electricity,ELECTRICITY SUPPLY,11/02/2022,REDACTED INVOICE NUMBER,154729,13.64,Revenue,4145,Opus Energy (Corporate) Ltd,OX2 7JH,0.00
Hra Expenditure,Special Services,Sheltered Welfare Services,Electricity,ELECTRICITY SUPPLY,11/02/2022,REDACTED INVOICE NUMBER,154737,33.21,Revenue,4145,Opus Energy (Corporate) Ltd,OX2 7JH,0.00
Director Corporate Resources,Asset Management,Asset Management,Electricity,ELECTRICITY SUPPLY,22/02/2022,REDACTED INVOICE NUMBER,143589,96.27,Revenue,4145,Opus Energy (Corporate) Ltd,OX2 7JH,0.00
Director Corporate Resources,Asset Management,Asset Management,Electricity,ELECTRICITY SUPPLY,22/02/2022,REDACTED INVOICE NUMBER,144638,88.26,Revenue,4145,Opus Energy (Corporate) Ltd,OX2 7JH,0.00
Director Of Environment,Open Spaces,Buildings & Stakeholders,Electricity,ELECTRICITY SUPPLY,22/02/2022,REDACTED INVOICE NUMBER,143569,30.26,Revenue,4145,Opus Energy (Corporate) Ltd,OX2 7JH,0.00
Director Of Environment,Open Spaces,Buildings & Stakeholders,Electricity,ELECTRICITY SUPPLY,22/02/2022,REDACTED INVOICE NUMBER,144639,27.66,Revenue,4145,Opus Energy (Corporate) Ltd,OX2 7JH,0.00
Director Of Environment,Open Spaces,Buildings & Stakeholders,Electricity,ELECTRICITY SUPPLY,22/02/2022,REDACTED INVOICE NUMBER,153608,51.39,Revenue,4145,Opus Energy (Corporate) Ltd,OX2 7JH,0.00
Director Of Environment,Open Spaces,Buildings & Stakeholders,Electricity,ELECTRICITY SUPPLY,22/02/2022,REDACTED INVOICE NUMBER,152278,45.14,Revenue,4145,Opus Energy (Corporate) Ltd,OX2 7JH,0.00
Director Of Environment,Open Spaces,Buildings & Stakeholders,Electricity,ELECTRICITY SUPPLY,22/02/2022,REDACTED INVOICE NUMBER,153607,93.29,Revenue,4145,Opus Energy (Corporate) Ltd,OX2 7JH,0.00
Hra Expenditure,Special Services,Communal Lighting,Electricity,ELECTRICITY SUPPLY,25/02/2022,REDACTED INVOICE NUMBER,156130,21.35,Revenue,4145,Opus Energy (Corporate) Ltd,OX2 7JH,0.00
Hra Expenditure,Special Services,Communal Lighting,Electricity,ELECTRICITY SUPPLY,25/02/2022,REDACTED INVOICE NUMBER,156141,11.43,Revenue,4145,Opus Energy (Corporate) Ltd,OX2 7JH,0.00
Hra Expenditure,Special Services,Communal Lighting,Electricity,ELECTRICITY SUPPLY,25/02/2022,REDACTED INVOICE NUMBER,156150,30,Revenue,4145,Opus Energy (Corporate) Ltd,OX2 7JH,0.00
Hra Expenditure,Special Services,Communal Lighting,Electricity,ELECTRICITY SUPPLY,25/02/2022,REDACTED INVOICE NUMBER,156158,35.55,Revenue,4145,Opus Energy (Corporate) Ltd,OX2 7JH,0.00
Hra Expenditure,Special Services,Communal Lighting,Electricity,ELECTRICITY SUPPLY,25/02/2022,REDACTED INVOICE NUMBER,156159,76.15,Revenue,4145,Opus Energy (Corporate) Ltd,OX2 7JH,0.00
Hra Expenditure,Special Services,Communal Lighting,Electricity,ELECTRICITY SUPPLY,25/02/2022,REDACTED INVOICE NUMBER,156003,-13.63,Revenue,4145,Opus Energy (Corporate) Ltd,OX2 7JH,0.00
Hra Expenditure,Special Services,Communal Lighting,Electricity,ELECTRICITY SUPPLY,25/02/2022,REDACTED INVOICE NUMBER,156031,-82.5,Revenue,4145,Opus Energy (Corporate) Ltd,OX2 7JH,0.00
Hra Expenditure,Special Services,Communal Lighting,Electricity,ELECTRICITY SUPPLY,25/02/2022,REDACTED INVOICE NUMBER,155993,-41.83,Revenue,4145,Opus Energy (Corporate) Ltd,OX2 7JH,0.00
Hra Expenditure,Special Services,Communal Lighting,Electricity,ELECTRICITY SUPPLY,25/02/2022,REDACTED INVOICE NUMBER,155997,-32.64,Revenue,4145,Opus Energy (Corporate) Ltd,OX2 7JH,0.00
Hra Expenditure,Special Services,Communal Lighting,Electricity,ELECTRICITY SUPPLY,25/02/2022,REDACTED INVOICE NUMBER,156085,-65.15,Revenue,4145,Opus Energy (Corporate) Ltd,OX2 7JH,0.00
Hra Expenditure,Special Services,Communal Lighting,Electricity,ELECTRICITY SUPPLY,25/02/2022,REDACTED INVOICE NUMBER,155995,-38.45,Revenue,4145,Opus Energy (Corporate) Ltd,OX2 7JH,0.00
Hra Expenditure,Special Services,Communal Lighting,Electricity,ELECTRICITY SUPPLY,25/02/2022,REDACTED INVOICE NUMBER,155994,-44.73,Revenue,4145,Opus Energy (Corporate) Ltd,OX2 7JH,0.00
Hra Expenditure,Special Services,Communal Lighting,Electricity,ELECTRICITY SUPPLY,25/02/2022,REDACTED INVOICE NUMBER,156000,-20.48,Revenue,4145,Opus Energy (Corporate) Ltd,OX2 7JH,0.00
Hra Expenditure,Special Services,Communal Lighting,Electricity,ELECTRICITY SUPPLY,25/02/2022,REDACTED INVOICE NUMBER,155999,-20.28,Revenue,4145,Opus Energy (Corporate) Ltd,OX2 7JH,0.00
Hra Expenditure,Special Services,Communal Lighting,Electricity,ELECTRICITY SUPPLY,25/02/2022,REDACTED INVOICE NUMBER,156006,-37.53,Revenue,4145,Opus Energy (Corporate) Ltd,OX2 7JH,0.00
Hra Expenditure,Special Services,Communal Lighting,Electricity,ELECTRICITY SUPPLY,25/02/2022,REDACTED INVOICE NUMBER,155998,-26.41,Revenue,4145,Opus Energy (Corporate) Ltd,OX2 7JH,0.00
Hra Expenditure,Special Services,Communal Lighting,Electricity,ELECTRICITY SUPPLY,25/02/2022,REDACTED INVOICE NUMBER,156163,16.18,Revenue,4145,Opus Energy (Corporate) Ltd,OX2 7JH,0.00
Hra Expenditure,Special Services,Communal Lighting,Electricity,ELECTRICITY SUPPLY,25/02/2022,REDACTED INVOICE NUMBER,156260,17,Revenue,4145,Opus Energy (Corporate) Ltd,OX2 7JH,0.00
Hra Expenditure,Special Services,Communal Lighting,Electricity,ELECTRICITY SUPPLY,25/02/2022,REDACTED INVOICE NUMBER,156246,9.05,Revenue,4145,Opus Energy (Corporate) Ltd,OX2 7JH,0.00
Hra Expenditure,Special Services,Communal Lighting,Electricity,ELECTRICITY SUPPLY,25/02/2022,REDACTED INVOICE NUMBER,156251,1045.02,Revenue,4145,Opus Energy (Corporate) Ltd,OX2 7JH,0.00
Hra Expenditure,Special Services,Communal Lighting,Electricity,ELECTRICITY SUPPLY,25/02/2022,REDACTED INVOICE NUMBER,156255,21.09,Revenue,4145,Opus Energy (Corporate) Ltd,OX2 7JH,0.00
Hra Expenditure,Special Services,Communal Lighting,Electricity,ELECTRICITY SUPPLY,25/02/2022,REDACTED INVOICE NUMBER,156121,227.84,Revenue,4145,Opus Energy (Corporate) Ltd,OX2 7JH,0.00
Hra Expenditure,Special Services,Communal Lighting,Electricity,ELECTRICITY SUPPLY,25/02/2022,REDACTED INVOICE NUMBER,156122,38.21,Revenue,4145,Opus Energy (Corporate) Ltd,OX2 7JH,0.00
Hra Expenditure,Special Services,Communal Lighting,Electricity,ELECTRICITY SUPPLY,25/02/2022,REDACTED INVOICE NUMBER,156311,102.13,Revenue,4145,Opus Energy (Corporate) Ltd,OX2 7JH,0.00
Hra Expenditure,Special Services,Communal Lighting,Electricity,ELECTRICITY SUPPLY,25/02/2022,REDACTED INVOICE NUMBER,156166,4420.26,Revenue,4145,Opus Energy (Corporate) Ltd,OX2 7JH,0.00
Hra Expenditure,Special Services,Communal Lighting,Electricity,ELECTRICITY SUPPLY,25/02/2022,REDACTED INVOICE NUMBER,156245,135.45,Revenue,4145,Opus Energy (Corporate) Ltd,OX2 7JH,0.00
Hra Expenditure,Special Services,Communal Lighting,Electricity,ELECTRICITY SUPPLY,25/02/2022,REDACTED INVOICE NUMBER,156181,121.8,Revenue,4145,Opus Energy (Corporate) Ltd,OX2 7JH,0.00
Hra Expenditure,Special Services,Communal Lighting,Electricity,ELECTRICITY SUPPLY,25/02/2022,REDACTED INVOICE NUMBER,156183,645.51,Revenue,4145,Opus Energy (Corporate) Ltd,OX2 7JH,0.00
Hra Expenditure,Special Services,Communal Lighting,Electricity,ELECTRICITY SUPPLY,25/02/2022,REDACTED INVOICE NUMBER,156184,413.95,Revenue,4145,Opus Energy (Corporate) Ltd,OX2 7JH,0.00
Hra Expenditure,Special Services,Communal Lighting,Electricity,ELECTRICITY SUPPLY,25/02/2022,REDACTED INVOICE NUMBER,156007,-138.32,Revenue,4145,Opus Energy (Corporate) Ltd,OX2 7JH,0.00
Hra Expenditure,Special Services,Communal Lighting,Electricity,ELECTRICITY SUPPLY,25/02/2022,REDACTED INVOICE NUMBER,156011,-111.8,Revenue,4145,Opus Energy (Corporate) Ltd,OX2 7JH,0.00
Hra Expenditure,Special Services,Communal Lighting,Electricity,ELECTRICITY SUPPLY,25/02/2022,REDACTED INVOICE NUMBER,156004,-146.71,Revenue,4145,Opus Energy (Corporate) Ltd,OX2 7JH,0.00
Hra Expenditure,Special Services,Communal Lighting,Electricity,ELECTRICITY SUPPLY,25/02/2022,REDACTED INVOICE NUMBER,156010,-110.51,Revenue,4145,Opus Energy (Corporate) Ltd,OX2 7JH,0.00
Hra Expenditure,Special Services,Communal Lighting,Electricity,ELECTRICITY SUPPLY,25/02/2022,REDACTED INVOICE NUMBER,156009,-108.35,Revenue,4145,Opus Energy (Corporate) Ltd,OX2 7JH,0.00
Hra Expenditure,Special Services,Communal Lighting,Electricity,ELECTRICITY SUPPLY,25/02/2022,REDACTED INVOICE NUMBER,156008,-125.66,Revenue,4145,Opus Energy (Corporate) Ltd,OX2 7JH,0.00
Hra Expenditure,Special Services,Sheltered Welfare Services,Electricity,ELECTRICITY SUPPLY,25/02/2022,REDACTED INVOICE NUMBER,156195,13.64,Revenue,4145,Opus Energy (Corporate) Ltd,OX2 7JH,0.00
Director Of Law & Governance,Corporate Support,Corporate Support,Sal - Basic (Fixed Term Staff),PROJECT MANAGEMENT SUPPORT,11/02/2022,REDACTED INVOICE NUMBER,155537,714.23,Revenue,28444,Opus People Solutions Group Limited,IP1 2BX,0.00
Director Of Law & Governance,Legal Services & Data Protect,Legal Services & Data Protect,Legal Fees,LEGAL FEES,22/02/2022,REDACTED INVOICE NUMBER,155731,254,Revenue,202119P,P G Ashton And Sons,RM3 0JA,0.00
Director Of Planning & Economy,Planning Development Managemt,Planning Development Managemt,Agency Staff,PROJECT MANAGEMENT SUPPORT,08/02/2022,REDACTED INVOICE NUMBER,155069,697.5,Revenue,26959,Park Avenue Recruitment Ltd,EC1V 9EE,0.00
Director Of Planning & Economy,Planning Development Managemt,Planning Development Managemt,Agency Staff,PROJECT MANAGEMENT SUPPORT,15/02/2022,REDACTED INVOICE NUMBER,154939,864.9,Revenue,26959,Park Avenue Recruitment Ltd,EC1V 9EE,0.00
Director Of Planning & Economy,Planning Development Managemt,Planning Development Managemt,Agency Staff,PROJECT MANAGEMENT SUPPORT,22/02/2022,REDACTED INVOICE NUMBER,155206,866.25,Revenue,26959,Park Avenue Recruitment Ltd,EC1V 9EE,0.00
Capex Director Of Environment,Other Environmental Services,Disabled Facilities Grant,Grants - General,DISABLED FACILITIES GRANT,18/02/2022,REDACTED INVOICE NUMBER,155659,1007.88,Capital,26573,Paul Weightman,CM14 4PL,0.00
Capex Director Of Environment,Other Environmental Services,Disabled Facilities Grant,Grants - General,DISABLED FACILITIES GRANT,18/02/2022,REDACTED INVOICE NUMBER,155660,1076.1,Capital,26573,Paul Weightman,CM14 4PL,0.00
Capex Director Of Environment,Other Environmental Services,Disabled Facilities Grant,Grants - General,DISABLED FACILITIES GRANT,18/02/2022,REDACTED INVOICE NUMBER,155662,1120.38,Capital,26573,Paul Weightman,CM14 4PL,0.00
Director Of Environment,Licensing,Taxi Drivers Account,Crb Checks,Enhanced Check Government Fee,01/02/2022,REDACTED INVOICE NUMBER,154408,686,Revenue,24446,Personnel Checks,.,0.00
Director Of Environment,Licensing,Taxi Drivers Account,Crb Checks,ENHANCED CHECKS,01/02/2022,REDACTED INVOICE NUMBER,154927,588,Revenue,24446,Personnel Checks,.,0.00
Hra Expenditure,Repairs And Maintenance,Responsive Repairs Management,Pest Control,WASPS NEST,04/02/2022,REDACTED INVOICE NUMBER,155060,60,Revenue,4226,Pestbusters,CM15 9JU,0.00
Director Digital & Customer En,Digital Servs & Transformation,Ict Services,Managed Services,AZURE OVERAGE - DEC '21,11/02/2022,REDACTED INVOICE NUMBER,154953,26483.38,Revenue,4250,Phoenix Software Limited,YO42 1NS,0.00
Director Of Environment,"Communities, Health & Leisure",Community Development,Contracted Services,COMMUNITY FUND PAYMENT,18/02/2022,REDACTED INVOICE NUMBER,155990,2000,Revenue,202782P,Pilgrims Hatch Baptist Church,CM15 0BD,0.00
Director Of Environment,Golf Course,Golf Course,R&M Grounds - General,HARTSWOOD GOLF COURSE BOUNDARY FENCE,18/02/2022,REDACTED INVOICE NUMBER,155323,575,Revenue,198660P,Pinney Talfourd,RM1 3AA,0.00
Director Of Environment,Vehicle Fleet Management,Vehicle Fleet Management,Vehicle R&M - External,SWEEPER REPAIRS,01/02/2022,REDACTED INVOICE NUMBER,155055,58,Revenue,4270,Pirtek (Basildon),SS14 3DY,0.00
Director Of Environment,Depot Management & Admin,Depot Management & Admin,Plant & Mcy - Repairs & Maint,JET WASH REPAIRS - DEPOT,25/02/2022,REDACTED INVOICE NUMBER,155653,113.58,Revenue,4270,Pirtek (Basildon),SS14 3DY,0.00
Director Of Environment,Vehicle Fleet Management,Vehicle Fleet Management,Vehicle Replacement Parts,VEHICLE REPAIRS,25/02/2022,REDACTED INVOICE NUMBER,155225,138.11,Revenue,4270,Pirtek (Basildon),SS14 3DY,0.00
Director Of Environment,Vehicle Fleet Management,Vehicle Fleet Management,Vehicle Replacement Parts,VEHICLE REPAIRS,25/02/2022,REDACTED INVOICE NUMBER,155654,221.6,Revenue,4270,Pirtek (Basildon),SS14 3DY,0.00
Director Of Planning & Economy,Planning Development Managemt,Planning Development Managemt,Consultancy Fees,TREE AND LANDSCAPE SUPPORT. DEC'21,04/02/2022,REDACTED INVOICE NUMBER,154317,2475,Revenue,26594,Plumb Associates Ltd,CM3 6NF,0.00
Balance Sheet,Balance Sheet,Balance Sheet,Ctax 15jan Prior Surpls Police,PRECEPTS - FEBRUARY '22,04/02/2022,REDACTED INVOICE NUMBER,155447,1463,Revenue,22444,Police Precept,.,0.00
Balance Sheet,Balance Sheet,Balance Sheet,C Tax Police Precept,PRECEPTS - FEBRUARY '22,04/02/2022,REDACTED INVOICE NUMBER,155447,630335,Revenue,22444,Police Precept,.,0.00
Director Corporate Resources,Council Tax & Nndr,Council Tax Collection,Grants/Contributions - Police,PRECEPTS - FEBRUARY '22,04/02/2022,REDACTED INVOICE NUMBER,155447,-4353,Revenue,22444,Police Precept,.,0.00
Director Of Law & Governance,Electoral Services,Register Of Electors,Stationery - General,Direct Debit Payment,08/02/2022,REDACTED INVOICE NUMBER,155600,2020,Revenue,4295,Postage By Phone-Pitney Bowes Ltd,CM19 5DQ,0.00
Hra Expenditure,Special Services,Sheltered Welfare Services,Purchases - Cleaning,CLEANING MATERIALS,08/02/2022,REDACTED INVOICE NUMBER,154292,48.97,Revenue,4300,Power Hygiene + Safety Products Limited,SS6 7UY,0.00
Hra Expenditure,Special Services,Caretaking,Cleaning & Dom. Supplies-Other,CLEANING MATERIALS / MASKS,11/02/2022,REDACTED INVOICE NUMBER,154928,428.1,Revenue,4300,Power Hygiene + Safety Products Limited,SS6 7UY,0.00
Hra Expenditure,Special Services,Caretaking,Cleaning & Dom. Supplies-Other,CLEANING MATERIALS,15/02/2022,REDACTED INVOICE NUMBER,154960,348,Revenue,4300,Power Hygiene + Safety Products Limited,SS6 7UY,0.00
Director Of Environment,Vehicle Fleet Management,Vehicle Fleet Management,Vehicle Replacement Parts,HOIST PARTS - DEPOT,25/02/2022,REDACTED INVOICE NUMBER,154017,74,Revenue,4304,Ppk Services Ltd,GU14 6HF,0.00
Director Corporate Resources,Asset Management,Asset Management,R&M Bldgs - General,LIFT MAINTENANCE - MSCP,01/02/2022,REDACTED INVOICE NUMBER,154560,476,Revenue,4308,Precision Lift Services Ltd,SS14 3BZ,0.00
Director Of Law & Governance,Democratic Services & Support,Member Allowances & Expenses,Conference Expenses - Members,LOCAL GOVERNMENT CONFERENCE,01/02/2022,REDACTED INVOICE NUMBER,152481,289,Revenue,28543,Prof. Development Grp T/A Government Events,SK9 4LY,0.00
Director Corporate Resources,Human Resources,Human Resources,Miscellaneous Expenses,WATER BOTTLES,08/02/2022,REDACTED INVOICE NUMBER,155333,1638,Revenue,199492P,Promotional Gifts Direct,CM15 0QJ,0.00
Director Of Planning & Economy,Planning Development Managemt,Planning Development Managemt,Other Professional Fees,APPEAL COSTS,11/02/2022,REDACTED INVOICE NUMBER,155544,4150,Revenue,28942,Rca Regeneration Ltd,WR9 0QE,0.00
Director Of Planning & Economy,Planning Development Managemt,Planning Development Managemt,Advertising - General,ADVERT PLACEMENT,15/02/2022,REDACTED INVOICE NUMBER,154961,152.52,Revenue,27928,Reach Publishing Services Ltd,E14 5AP,0.00
Director Of Planning & Economy,Planning Development Managemt,Planning Development Managemt,Advertising - General,ADVERT PLACEMENT,22/02/2022,REDACTED INVOICE NUMBER,155604,203.36,Revenue,27928,Reach Publishing Services Ltd,E14 5AP,0.00
Director Housing & Enforcement,Homelessness,Private Sector Acc Leased,Rent/Hire Of Buildings,PRIVATE SECTOR LEASING,08/02/2022,REDACTED INVOICE NUMBER,155355,600,Revenue,2339,REDACTED PERSONAL DATA,REDACTED,0.00
Director Housing & Enforcement,Homelessness,Private Sector Acc Leased,Rent/Hire Of Buildings,PRIVATE SECTOR LEASING,08/02/2022,REDACTED INVOICE NUMBER,155354,725,Revenue,2968,REDACTED PERSONAL DATA,REDACTED,0.00
Hra Expenditure,Supervision And Management,Policy And Management,Project Management Support,Advanced consultancy credits,04/02/2022,REDACTED INVOICE NUMBER,154263,6920,Revenue,26765,Right Data Ltd,IG4 5EX,0.00
Director Of Law & Governance,Electoral Services,Register Of Electors,Postage Costs Direct,POSTAL CHARGES,01/02/2022,REDACTED INVOICE NUMBER,154455,43.16,Revenue,4491,Royal Mail Group Plc,BL4 9XX,0.00
Director Of Law & Governance,Electoral Services,Register Of Electors,External Printing,POSTAL CHARGES,04/02/2022,REDACTED INVOICE NUMBER,151688,44.61,Revenue,4491,Royal Mail Group Plc,BL4 9XX,0.00
Director Corporate Resources,Council Tax & Nndr,Nndr Collection,Baliff Fees,REVENUES CLLECTION,01/02/2022,REDACTED INVOICE NUMBER,154311,0.00,Revenue,4501,Rundle + Co Ltd,LE16 9HB,0.00
Director Corporate Resources,Council Tax & Nndr,Nndr Collection,Baliff Fees,REVENUES CLLECTION,11/02/2022,REDACTED INVOICE NUMBER,155197,0.00,Revenue,4501,Rundle + Co Ltd,LE16 9HB,0.00
Director Of Environment,Vehicle Fleet Management,Vehicle Fleet Management,Purchases - General Equipment,SERVICE CHARGE - JAN / FEB '22,11/02/2022,REDACTED INVOICE NUMBER,154572,247.68,Revenue,4527,Safetykleen Uk Ltd,SS15 6TR,0.00
Hra Expenditure,Repairs And Maintenance,Responsive Void Repairs,Compensation,COMPENSATION,22/02/2022,REDACTED INVOICE NUMBER,156106,540,Revenue,202815P,Sbw Law,L19 2RF,0.00
Director Of Environment,Vehicle Fleet Management,Vehicle Fleet Management,Vehicle Replacement Parts,VEHICLE PARTS,04/02/2022,REDACTED INVOICE NUMBER,154433,307.93,Revenue,4559,Scarab Sweepers Limited,TN12 9QD,0.00
Director Of Environment,Vehicle Fleet Management,Vehicle Fleet Management,Vehicle Replacement Parts,PARTS,18/02/2022,REDACTED INVOICE NUMBER,155050,822.94,Revenue,4559,Scarab Sweepers Limited,TN12 9QD,0.00
Hra Expenditure,Special Services,Grounds Maintenance,R&M Grounds - Treework,TREE WORKS,04/02/2022,REDACTED INVOICE NUMBER,153942,320,Revenue,26018,Scott Williams,RM18 8SU,0.00
Director Of Environment,"Communities, Health & Leisure",Christmas Lights & Decorations,Contracted Services,TREE WORKS,08/02/2022,REDACTED INVOICE NUMBER,154464,330,Revenue,26018,Scott Williams,RM18 8SU,0.00
Director Of Environment,Open Spaces,Amenity Greens,R&M Grounds - Treework,TREE WORKS,15/02/2022,REDACTED INVOICE NUMBER,154868,330,Revenue,26018,Scott Williams,RM18 8SU,0.00
Director Of Environment,Open Spaces,Recreation Areas,R&M Grounds - Treework,TREE WORKS,22/02/2022,REDACTED INVOICE NUMBER,155131,330,Revenue,26018,Scott Williams,RM18 8SU,0.00
Hra Expenditure,Repairs And Maintenance,Responsive Void Repairs,Gas,GAS SUPPLY,18/02/2022,REDACTED INVOICE NUMBER,155772,105.11,Revenue,4568,Scottish Power,BN11 9LT,0.00
Hra Expenditure,Special Services,Grounds Maintenance,R&M Grounds - Treework,TREE WORKS,01/02/2022,REDACTED INVOICE NUMBER,154954,1500,Revenue,26924,Sds Tree Services,CM4 0RX,0.00
Balance Sheet,Balance Sheet,Balance Sheet,Contractor Retentions Account,CORAM GREEN HOUSING,04/02/2022,REDACTED INVOICE NUMBER,154962,-1491.98,Revenue,28406,Seh French Ltd,IP1 5LT,0.00
Capex Director Of Housing,Housing - Affordable Housing,Coram Green,Enhancements,CORAM GREEN HOUSING,04/02/2022,REDACTED INVOICE NUMBER,154962,49732.74,Capital,28406,Seh French Ltd,IP1 5LT,0.00
Director Of Law & Governance,Legal Services & Data Protect,Legal Services & Data Protect,Project Management Support,PROJECT MANAGEMENT SUPPORT,08/02/2022,REDACTED INVOICE NUMBER,155339,1482.53,Revenue,4582,Sellick Partnership Group Ltd,M2 5HX,0.00
Director Of Law & Governance,Legal Services & Data Protect,Legal Services & Data Protect,Project Management Support,PROJECT MANAGEMENT SUPPORT,15/02/2022,REDACTED INVOICE NUMBER,155611,1482.53,Revenue,4582,Sellick Partnership Group Ltd,M2 5HX,0.00
Director Of Law & Governance,Legal Services & Data Protect,Legal Services & Data Protect,Project Management Support,PROJECT MANAGEMENT SUPPORT,18/02/2022,REDACTED INVOICE NUMBER,155842,1482.53,Revenue,4582,Sellick Partnership Group Ltd,M2 5HX,0.00
Director Of Law & Governance,Legal Services & Data Protect,Legal Services & Data Protect,Project Management Support,PROJECT MANAGEMENT SUPPORT,22/02/2022,REDACTED INVOICE NUMBER,155935,724.79,Revenue,4582,Sellick Partnership Group Ltd,M2 5HX,0.00
Director Of Environment,Street Services,Street Cleansing,Agency Staff,PROJECT MANAGEMENT SUPPORT,04/02/2022,REDACTED INVOICE NUMBER,154153,434.83,Revenue,4575,Sewell Staffing Limited T/A Sector Recruitme,CM15 0AU,0.00
Director Of Environment,Street Services,Street Cleansing,Agency Staff,PROJECT MANAGEMENT SUPPORT,04/02/2022,REDACTED INVOICE NUMBER,154155,882.65,Revenue,4575,Sewell Staffing Limited T/A Sector Recruitme,CM15 0AU,0.00
Director Of Environment,Waste Management,Waste Collection Support,Agency Staff,PROJECT MANAGEMENT SUPPORT,04/02/2022,REDACTED INVOICE NUMBER,154152,4621.19,Revenue,4575,Sewell Staffing Limited T/A Sector Recruitme,CM15 0AU,0.00
Director Of Environment,Waste Management,Waste Collection Support,Agency Staff,PROJECT MANAGEMENT SUPPORT,04/02/2022,REDACTED INVOICE NUMBER,154154,7979.6,Revenue,4575,Sewell Staffing Limited T/A Sector Recruitme,CM15 0AU,0.00
Director Of Environment,Street Services,Street Cleansing,Agency Staff,PROJECT MANAGEMENT SUPPORT,11/02/2022,REDACTED INVOICE NUMBER,155230,719.69,Revenue,4575,Sewell Staffing Limited T/A Sector Recruitme,CM15 0AU,0.00
Director Of Environment,Street Services,Street Cleansing,Agency Staff,PROJECT MANAGEMENT SUPPORT,11/02/2022,REDACTED INVOICE NUMBER,155232,769.69,Revenue,4575,Sewell Staffing Limited T/A Sector Recruitme,CM15 0AU,0.00
Director Of Environment,Street Services,Street Cleansing,Agency Staff,PROJECT MANAGEMENT SUPPORT,11/02/2022,REDACTED INVOICE NUMBER,155231,6138.3,Revenue,4575,Sewell Staffing Limited T/A Sector Recruitme,CM15 0AU,0.00
Director Of Environment,Waste Management,Waste Collection Support,Agency Staff,PROJECT MANAGEMENT SUPPORT,11/02/2022,REDACTED INVOICE NUMBER,155229,6011.21,Revenue,4575,Sewell Staffing Limited T/A Sector Recruitme,CM15 0AU,0.00
Director Of Environment,Waste Management,Waste Collection Support,Agency Staff,PROJECT MANAGEMENT SUPPORT,11/02/2022,REDACTED INVOICE NUMBER,155233,5926.9,Revenue,4575,Sewell Staffing Limited T/A Sector Recruitme,CM15 0AU,0.00
Director Of Environment,Parking,Parking Services,Agency Staff,PROJECT MANAGEMENT SUPPORT,25/02/2022,REDACTED INVOICE NUMBER,155228,529.1,Revenue,4575,Sewell Staffing Limited T/A Sector Recruitme,CM15 0AU,0.00
Director Of Environment,Parking,Parking Services,Agency Staff,PROJECT MANAGEMENT SUPPORT,25/02/2022,REDACTED INVOICE NUMBER,155364,529.1,Revenue,4575,Sewell Staffing Limited T/A Sector Recruitme,CM15 0AU,0.00
Director Of Environment,Parking,Parking Services,Agency Staff,PROJECT MANAGEMENT SUPPORT,25/02/2022,REDACTED INVOICE NUMBER,155745,529.1,Revenue,4575,Sewell Staffing Limited T/A Sector Recruitme,CM15 0AU,0.00
Director Of Environment,Street Services,Street Cleansing,Agency Staff,PROJECT MANAGEMENT SUPPORT,25/02/2022,REDACTED INVOICE NUMBER,155228,872.39,Revenue,4575,Sewell Staffing Limited T/A Sector Recruitme,CM15 0AU,0.00
Director Of Environment,Street Services,Street Cleansing,Agency Staff,PROJECT MANAGEMENT SUPPORT,25/02/2022,REDACTED INVOICE NUMBER,155364,1018.73,Revenue,4575,Sewell Staffing Limited T/A Sector Recruitme,CM15 0AU,0.00
Director Of Environment,Street Services,Street Cleansing,Agency Staff,PROJECT MANAGEMENT SUPPORT,25/02/2022,REDACTED INVOICE NUMBER,155745,556.85,Revenue,4575,Sewell Staffing Limited T/A Sector Recruitme,CM15 0AU,0.00
Director Of Environment,Waste Management,Waste Collection Support,Agency Staff,PROJECT MANAGEMENT SUPPORT,25/02/2022,REDACTED INVOICE NUMBER,155530,-39.88,Revenue,4575,Sewell Staffing Limited T/A Sector Recruitme,CM15 0AU,0.00
Director Of Environment,Waste Management,Waste Collection Support,Agency Staff,PROJECT MANAGEMENT SUPPORT,25/02/2022,REDACTED INVOICE NUMBER,155365,6166.12,Revenue,4575,Sewell Staffing Limited T/A Sector Recruitme,CM15 0AU,0.00
Director Of Environment,Waste Management,Waste Collection Support,Agency Staff,PROJECT MANAGEMENT SUPPORT,25/02/2022,REDACTED INVOICE NUMBER,155746,4718.24,Revenue,4575,Sewell Staffing Limited T/A Sector Recruitme,CM15 0AU,0.00
Director Of Planning & Economy,Building Control,Building Control - Chargeable,Other Professional Fees,Technical  Contract,18/02/2022,REDACTED INVOICE NUMBER,155936,875,Revenue,4592,Sgs United Kingdom Ltd,CH65 3EN,0.00
Director Of Law & Governance,Legal Services & Data Protect,Legal Services & Data Protect,Planning Fees,FEES,25/02/2022,REDACTED INVOICE NUMBER,155338,9353.69,Revenue,4599,Sharpe Pritchard,WC1X 0BJ,0.00
Director Of Law & Governance,Legal Services & Data Protect,Legal Services & Data Protect,Search Fees,FEES,25/02/2022,REDACTED INVOICE NUMBER,155338,12,Revenue,4599,Sharpe Pritchard,WC1X 0BJ,0.00
Director Of Environment,Open Spaces,Sports Pitches,Purchases - Materials,Brentwood Stadium Works,04/02/2022,REDACTED INVOICE NUMBER,154261,120,Revenue,27425,Skippers Ground Maintenance Ltd,CM9 6RZ,0.00
Director Of Environment,Open Spaces,Sports Pitches,Purchases - Materials,PITCH MARKING,18/02/2022,REDACTED INVOICE NUMBER,155070,370,Revenue,27425,Skippers Ground Maintenance Ltd,CM9 6RZ,0.00
Director Of Environment,Vehicle Fleet Management,Vehicle Fleet Management,Vehicle Replacement Parts,VEHICLE REPAIRS,08/02/2022,REDACTED INVOICE NUMBER,154443,195,Revenue,4635,Smart Glass Essex,RM14 1HS,0.00
Director Of Environment,Vehicle Fleet Management,Vehicle Fleet Management,Vehicle Replacement Parts,VEHICLE REPAIRS,08/02/2022,REDACTED INVOICE NUMBER,154442,285,Revenue,4635,Smart Glass Essex,RM14 1HS,0.00
Balance Sheet,Balance Sheet,Balance Sheet,Highways Stores,CLOTHING,04/02/2022,REDACTED INVOICE NUMBER,154300,10.33,Revenue,24887,Smi Group,GU27 2QH,0.00
Balance Sheet,Balance Sheet,Balance Sheet,Highways Stores,CLOTHING / GLOVES,04/02/2022,REDACTED INVOICE NUMBER,154285,552,Revenue,24887,Smi Group,GU27 2QH,0.00
Balance Sheet,Balance Sheet,Balance Sheet,Highways Stores,BOOTS,25/02/2022,REDACTED INVOICE NUMBER,155239,683.25,Revenue,24887,Smi Group,GU27 2QH,0.00
Balance Sheet,Balance Sheet,Balance Sheet,Highways Stores,CLOTHING,25/02/2022,REDACTED INVOICE NUMBER,155213,162.6,Revenue,24887,Smi Group,GU27 2QH,0.00
Balance Sheet,Balance Sheet,Balance Sheet,Highways Stores,GLOVES,25/02/2022,REDACTED INVOICE NUMBER,155214,311,Revenue,24887,Smi Group,GU27 2QH,0.00
Balance Sheet,Balance Sheet,Balance Sheet,Highways Stores,GLOVES,25/02/2022,REDACTED INVOICE NUMBER,155318,98.44,Revenue,24887,Smi Group,GU27 2QH,0.00
Balance Sheet,Balance Sheet,Balance Sheet,Highways Stores,GLOVES,25/02/2022,REDACTED INVOICE NUMBER,155317,329.56,Revenue,24887,Smi Group,GU27 2QH,0.00
Director Of Environment,Env Pro. Noise & Pollution,Env Pro. Noise & Pollution,Analytical Services,SUPPLY DIFFUSION TUBES,18/02/2022,REDACTED INVOICE NUMBER,155056,1501.5,Revenue,1036,Socotec,DE15 0YZ,0.00
Director Of Environment,Env Pro. Noise & Pollution,Env Pro. Noise & Pollution,Analytical Services,SUPPLY DIFUSSION TUBES,18/02/2022,REDACTED INVOICE NUMBER,155057,1306.8,Revenue,1036,Socotec,DE15 0YZ,0.00
Director Digital & Customer En,Digital Servs & Transformation,Ict Services,Managed Services,WVD License,15/02/2022,REDACTED INVOICE NUMBER,154930,749.43,Revenue,25036,Sol-Tec Ltd,RG1 8EQ,0.00
Director Of Environment,"Communities, Health & Leisure",Sports & Social Venues,Computer & Software Purchases,Microsoft December 2021,15/02/2022,REDACTED INVOICE NUMBER,154931,963.15,Revenue,25036,Sol-Tec Ltd,RG1 8EQ,0.00
Director Of Environment,"Communities, Health & Leisure",Sports & Social Venues,Contracted Services,MANAGEMENT FEE - SEPT '21,01/02/2022,REDACTED INVOICE NUMBER,155207,22000,Revenue,28440,Sports And Leisure Management,LE10 3EY,0.00
Director Of Planning & Economy,Economic Development Total,Economic Development,Other Fees & Service,LEARNING ACADEMY FOR FOOTFALL COUNTING,11/02/2022,REDACTED INVOICE NUMBER,154581,2360,Revenue,28485,Springboard Research Ltd,MK14 6PH,0.00
Director Of Planning & Economy,Building Control,Building Control - Chargeable,Income - Building Reg Apps,BUILDING REGULATIONS,15/02/2022,REDACTED INVOICE NUMBER,155781,531.68,Revenue,202192P,Squibb Group,SS17 0EH,0.00
Director Of Environment,"Communities, Health & Leisure",Community Development,Contracted Services,COMMUITY DEVELOPMENT,18/02/2022,REDACTED INVOICE NUMBER,155954,5000,Revenue,202724P,St Stephen'S Church,CM13 2AS,0.00
Capex Director Of Environment,Other Environmental Services,Disabled Facilities Grant,Grants - General,DISABLED FACILITIES GRANT,08/02/2022,REDACTED INVOICE NUMBER,154599,5821,Capital,4721,Stannah Lift Services Limited,SP10 3SD,0.00
Director Housing & Enforcement,Homelessness,B&B Accommodation,B & B Charges (Homelessness),HOMELESSNESS PREVENTION,01/02/2022,REDACTED INVOICE NUMBER,154861,435,Revenue,28763,Stef Philips Ltd,N14 6BN,0.00
Director Housing & Enforcement,Homelessness,B&B Accommodation,B & B Charges (Homelessness),HOMELESSNESS PREVENTION,01/02/2022,REDACTED INVOICE NUMBER,154862,174,Revenue,28763,Stef Philips Ltd,N14 6BN,0.00
Director Housing & Enforcement,Homelessness,B&B Accommodation,B & B Charges (Homelessness),HOMELESSNESS PREVENTION,01/02/2022,REDACTED INVOICE NUMBER,154860,899,Revenue,28763,Stef Philips Ltd,N14 6BN,0.00
Director Housing & Enforcement,Homelessness,B&B Accommodation,B & B Charges (Homelessness),HOMELESSNESS PREVENTION,01/02/2022,REDACTED INVOICE NUMBER,154863,464,Revenue,28763,Stef Philips Ltd,N14 6BN,0.00
Director Of Environment,Vehicle Fleet Management,Vehicle Fleet Management,Vehicle Replacement Parts,VEHICLE PARTS,18/02/2022,REDACTED INVOICE NUMBER,155765,45.67,Revenue,4739,Steve Allan,RM3 0QS,0.00
Director Of Environment,Vehicle Fleet Management,Vehicle Fleet Management,Vehicle Replacement Parts,VEHICLE PARTS,18/02/2022,REDACTED INVOICE NUMBER,155764,10,Revenue,4739,Steve Allan,RM3 0QS,0.00
Director Of Environment,Vehicle Fleet Management,Vehicle Fleet Management,Vehicle Replacement Parts,VEHICLE PARTS,18/02/2022,REDACTED INVOICE NUMBER,155763,66.38,Revenue,4739,Steve Allan,RM3 0QS,0.00
Director Of Environment,Vehicle Fleet Management,Vehicle Fleet Management,Vehicle Replacement Parts,VEHICLE PARTS,18/02/2022,REDACTED INVOICE NUMBER,155762,57.47,Revenue,4739,Steve Allan,RM3 0QS,0.00
Director Of Environment,Vehicle Fleet Management,Vehicle Fleet Management,Vehicle Replacement Parts,VEHICLE PARTS,22/02/2022,REDACTED INVOICE NUMBER,155761,124.21,Revenue,4739,Steve Allan,RM3 0QS,0.00
Director Of Environment,Vehicle Fleet Management,Vehicle Fleet Management,Vehicle Replacement Parts,VEHICLE PARTS,25/02/2022,REDACTED INVOICE NUMBER,154546,82.72,Revenue,4739,Steve Allan,RM3 0QS,0.00
Director Of Environment,Vehicle Fleet Management,Vehicle Fleet Management,Vehicle Replacement Parts,VEHICLE PARTS,25/02/2022,REDACTED INVOICE NUMBER,154547,106.49,Revenue,4739,Steve Allan,RM3 0QS,0.00
Director Of Environment,Vehicle Fleet Management,Vehicle Fleet Management,Vehicle Replacement Parts,VEHICLE PARTS,25/02/2022,REDACTED INVOICE NUMBER,154548,60.67,Revenue,4739,Steve Allan,RM3 0QS,0.00
Director Of Environment,Vehicle Fleet Management,Vehicle Fleet Management,Vehicle Replacement Parts,VEHICLE PARTS,25/02/2022,REDACTED INVOICE NUMBER,154549,123.86,Revenue,4739,Steve Allan,RM3 0QS,0.00
Director Of Environment,Vehicle Fleet Management,Vehicle Fleet Management,Vehicle Replacement Parts,VEHICLE PARTS ,25/02/2022,REDACTED INVOICE NUMBER,154545,-82.74,Revenue,4739,Steve Allan,RM3 0QS,0.00
Director Of Environment,Street Services,Street Cleansing,Purchases - General Equipment,CONTAINER PARTS,04/02/2022,REDACTED INVOICE NUMBER,154579,1675,Revenue,4750,Storm Environmental Ltd,DY10 9BH,0.00
Director Corporate Resources,Asset Management,Asset Management,R&M Bldgs - General,PLUMBING WORKS - KGPF / MSCP,01/02/2022,REDACTED INVOICE NUMBER,154879,230,Revenue,4791,T Jones,CM13 1NS,0.00
Director Corporate Resources,Asset Management,Asset Management,R&M Bldgs - General,PLUMBING WORKS - KGPF TOILETS,01/02/2022,REDACTED INVOICE NUMBER,154880,55,Revenue,4791,T Jones,CM13 1NS,0.00
Balance Sheet,Balance Sheet,Balance Sheet,Highways Stores,COMPOSTABLE LINERS,25/02/2022,REDACTED INVOICE NUMBER,155324,5158.4,Revenue,357,The Compost Bag Company Limited,PR26 7PF,0.00
Director Of Planning & Economy,Planning Development Managemt,Planning Development Managemt,Agency Staff,PROJECT MANAGEMENT SUPPORT,04/02/2022,REDACTED INVOICE NUMBER,154447,1008,Revenue,4890,The Oyster Partnership,SW1Y 4QX,0.00
Director Of Planning & Economy,Planning Development Managemt,Planning Development Managemt,Agency Staff,PROJECT MANAGEMENT SUPPORT,04/02/2022,REDACTED INVOICE NUMBER,154448,502.55,Revenue,4890,The Oyster Partnership,SW1Y 4QX,0.00
Director Of Planning & Economy,Planning Development Managemt,Planning Development Managemt,Agency Staff,PROJECT MANAGEMENT SUPPORT,04/02/2022,REDACTED INVOICE NUMBER,154446,1273,Revenue,4890,The Oyster Partnership,SW1Y 4QX,0.00
Director Of Planning & Economy,Planning Development Managemt,Planning Development Managemt,Project Management Support,PROJECT MANAGEMENT SUPPORT,04/02/2022,REDACTED INVOICE NUMBER,154449,1850,Revenue,4890,The Oyster Partnership,SW1Y 4QX,0.00
Director Of Planning & Economy,Planning Development Managemt,Planning Development Managemt,Agency Staff,PROJECT MANAGEMENT SUPPORT,11/02/2022,REDACTED INVOICE NUMBER,154926,846,Revenue,4890,The Oyster Partnership,SW1Y 4QX,0.00
Director Of Planning & Economy,Planning Development Managemt,Planning Development Managemt,Agency Staff,PROJECT MANAGEMENT SUPPORT,11/02/2022,REDACTED INVOICE NUMBER,154924,1710,Revenue,4890,The Oyster Partnership,SW1Y 4QX,0.00
Director Of Planning & Economy,Planning Policy Total,Planning Policy,Project Management Support,PROJECT MANAGEMENT SUPPORT,11/02/2022,REDACTED INVOICE NUMBER,154925,629,Revenue,4890,The Oyster Partnership,SW1Y 4QX,0.00
Director Of Planning & Economy,Planning Development Managemt,Planning Development Managemt,Agency Staff,PROJECT MANAGEMENT SUPPORT,18/02/2022,REDACTED INVOICE NUMBER,155118,1080,Revenue,4890,The Oyster Partnership,SW1Y 4QX,0.00
Director Of Planning & Economy,Planning Development Managemt,Planning Development Managemt,Agency Staff,PROJECT MANAGEMENT SUPPORT,18/02/2022,REDACTED INVOICE NUMBER,155119,86.93,Revenue,4890,The Oyster Partnership,SW1Y 4QX,0.00
Director Of Planning & Economy,Planning Development Managemt,Planning Development Managemt,Agency Staff,PROJECT MANAGEMENT SUPPORT,18/02/2022,REDACTED INVOICE NUMBER,155117,1691,Revenue,4890,The Oyster Partnership,SW1Y 4QX,0.00
Director Of Planning & Economy,Planning Policy Total,Planning Policy,Project Management Support,PROJECT MANAGEMENT SUPPORT,18/02/2022,REDACTED INVOICE NUMBER,155120,2775,Revenue,4890,The Oyster Partnership,SW1Y 4QX,0.00
Director Of Planning & Economy,Planning Development Managemt,Planning Development Managemt,Agency Staff,PROJECT MANAGEMENT SUPPORT,25/02/2022,REDACTED INVOICE NUMBER,155329,1080,Revenue,4890,The Oyster Partnership,SW1Y 4QX,0.00
Director Of Planning & Economy,Planning Development Managemt,Planning Development Managemt,Agency Staff,PROJECT MANAGEMENT SUPPORT,25/02/2022,REDACTED INVOICE NUMBER,155327,1452.55,Revenue,4890,The Oyster Partnership,SW1Y 4QX,0.00
Director Of Planning & Economy,Planning Development Managemt,Planning Development Managemt,Agency Staff,PROJECT MANAGEMENT SUPPORT,25/02/2022,REDACTED INVOICE NUMBER,155326,1691,Revenue,4890,The Oyster Partnership,SW1Y 4QX,0.00
Director Of Planning & Economy,Planning Policy Total,Planning Policy,Project Management Support,PROJECT MANAGEMENT SUPPORT,25/02/2022,REDACTED INVOICE NUMBER,155328,2775,Revenue,4890,The Oyster Partnership,SW1Y 4QX,0.00
Director Of Law & Governance,Electoral Services,Register Of Electors,Postage Costs Direct,Schofields Election Law PR R61,04/02/2022,REDACTED INVOICE NUMBER,153253,288,Revenue,4926,Thomson Reuters,EC3N 1DL,0.00
Director Of Planning & Economy,Planning Development Managemt,Planning Development Managemt,Contracted Services,PLANNING WORK. MAY-NOV '21,04/02/2022,REDACTED INVOICE NUMBER,155493,1155,Revenue,4931,Thurrock Borough Council,RM17 6LT,0.00
Director Of Planning & Economy,Planning Development Managemt,Planning Development Managemt,Contracted Services,PLANNING SHARED SERVICES. OCT-DEC '21,18/02/2022,REDACTED INVOICE NUMBER,155457,22750,Revenue,25767,Thurrock Council,RM17 6SL,0.00
Director Of Environment,"Communities, Health & Leisure",Grants To Organisations,Grants - Community Fund,COMMUNITY FUND PAYMENT,11/02/2022,REDACTED INVOICE NUMBER,155257,1500,Revenue,4979,Trailnet C.I.C,CM13 3PZ,0.00
Director Of Environment,Golf Course,Golf Course,Protective Clothing,Helmet Set,25/02/2022,REDACTED INVOICE NUMBER,155217,76.8,Revenue,27590,Tudor Environmental,CV3 4FR,0.00
Director Of Environment,Grounds Maintenance,Grounds Maintenance,Purchases - Materials,Helmet Set,25/02/2022,REDACTED INVOICE NUMBER,155217,119.5,Revenue,27590,Tudor Environmental,CV3 4FR,0.00
Director Of Environment,Open Spaces,Buildings & Stakeholders,Electricity,ELECTRICITY SUPPLY,22/02/2022,REDACTED INVOICE NUMBER,155211,121.12,Revenue,5070,Warley Primary School,CM14 5LF,0.00
Director Of Environment,Vehicle Fleet Management,Vehicle Fleet Management,Vehicle R&M - External,Periodic maintenance,18/02/2022,REDACTED INVOICE NUMBER,155091,151.84,Revenue,25911,Watling Jcb Ltd,LE8 6LJ,0.00
Director Housing & Enforcement,Homelessness,Homelessness Prevention,Water,WATER SUPPLY,04/02/2022,REDACTED INVOICE NUMBER,154600,154.51,Revenue,171,Wave - Business. Was Anglian Water,CM20 9HA,0.00
Hra Expenditure,Repairs And Maintenance,Responsive Void Repairs,Water,WATER SUPPLY,18/02/2022,REDACTED INVOICE NUMBER,155668,49.07,Revenue,171,Wave - Business. Was Anglian Water,CM20 9HA,0.00
Balance Sheet,Balance Sheet,Balance Sheet,Fuel Stores,DIESEL,08/02/2022,REDACTED INVOICE NUMBER,154576,11854,Revenue,25187,Wessex Petroleum Ltd T/A Wp Group,SO15 2BE,0.00
Director Of Environment,Vehicle Fleet Management,Vehicle Fleet Management,Vehicle Replacement Parts,VEHICLE PARTS,04/02/2022,REDACTED INVOICE NUMBER,154434,243.4,Revenue,5142,Wright Parts,RM13 8NH,0.00
Director Of Environment,Vehicle Fleet Management,Vehicle Fleet Management,Vehicle Replacement Parts,VEHICLE PARTS,15/02/2022,REDACTED INVOICE NUMBER,155114,116.85,Revenue,5142,Wright Parts,RM13 8NH,0.00
Balance Sheet,Balance Sheet,Balance Sheet,Insurance Account,CHILDERDITCH. 2.2.21 - 24.6.21,11/02/2022,REDACTED INVOICE NUMBER,155714,1917.17,Revenue,5169,Zurich Insurance Plc,PO15 7JZ,0.00
Balance Sheet,Balance Sheet,Balance Sheet,Insurance Account,HIGH RISE RE-EVALUATION,11/02/2022,REDACTED INVOICE NUMBER,155713,3122.52,Revenue,5169,Zurich Insurance Plc,PO15 7JZ,0.00
Director Of Environment,Open Spaces,Buildings & Stakeholders,Insurances - General Claims,INSURED RECOVERY STATEMENT,18/02/2022,REDACTED INVOICE NUMBER,155878,500,Revenue,5169,Zurich Insurance Plc,PO15 7JZ,0.00
